Workbook

Sheet Summary Total
B2: CN LEKALAKE SECONDARY SCHOOL
B3: SUMMARY: ELECTRICAL WORKS
B4: Section | C4: Description | D4: Quantity | E4: Amount | F4: Total | G4: Previous | H4: Variance
B6: 1 | C6: P&G's @ 10 % of items 2-15 | F6: 0
B7: 1 | C7: LV Reticulation | D7: 1 | E7: ='LV Reticulation'!G60 -> 0 | G7: ZAR 9,607,955.00 | H7: =F7-G7 -> (9,607,955.00)
B8: 2 | C8: Administration Block | D8: 1 | E8: ='Administration Block'!G173 -> 0
B9: 3 | C9: Computer Laboratory | D9: 1 | E9: =ComputerLaboratory!G175 -> 0
B10: 4 | C10: Home Economics | D10: 1 | E10: ='Home Economics'!G175 -> 0
B11: 5 | C11: School Hall | D11: 1 | E11: ='School Hall'!G177 -> 0
B12: 6 | C12: Existing 4 CLR + Ablutions | D12: 4 | E12: ='Existing 4 CLR+Abl'!G175 -> 0
B13: 7 | C13: ScienceLab + Library | D13: 1 | E13: ='Science Lab + Library'!G171 -> 0
B14: 8 | C14: New 4 CLR + Ablutions | D14: 4 | E14: ='New 4 CLR+Abl'!G173 -> 0
B15: 9 | C15: New HOD + Multipurpose CLR + Maths Lab + Ablutions | D15: 1 | E15: ='HOD+Multipurpose+Maths Lab'!G171 -> 0
B16: 10 | C16: Caretakers room + Store | D16: 1 | E16: ='Caretakers Room + Store'!G173 -> 0
B17: 11 | C17: Tuckshop | D17: 1 | E17: =TuckShop!G173 -> 0
B18: 12 | C18: Changerooms | D18: 1 | E18: =Changerooms!G173 -> 0 | G18: ZAR 11,046,000.00 | H18: =F18-G18 -> (11,046,000.00) | J18: =SUM(F18:F18)*1.1 -> 0 | K18: =SUM(F18:F18) -> 0 | L18: =F18/$K$18 ->  | M18: =L18/D18 ->  | N18: =M18*#REF! ->  | O18: =N18*D18 ->  | Q18: ZAR 26,019.96
B19: 13 | C19: Guard House | D19: 1 | E19: ='Guard House'!G173 -> 0
B20: 14 | C20: Provide the Sum of R 600 000,00 for area lighting including tennis court and soccer field lighting | D20: Sum | E20: ZAR 600,000.00 | F20: =E20 -> ZAR 600,000.00 | G20: =F20*E20 -> ZAR 360,000,000,000.00
C22: SUB TOTAL
C26: TOTAL BID PRICE CARRIED TO MAIN BoQ PAGE 156
E28: 42.00
F37: =5171811.67-2324872.67 -> 2846939
E67: 750 | G67: =F67*E67 -> 0
E73: 45
E81: 4
E83: 12
E106: 4
E126: 8
C130: Type F Socket outlet | E130: 1 | F130: 1250 | G130: =E130*F130 -> 1250
E147: 15
E149: 8
E165: =50 -> 50
E173: 6

Sheet LV Reticulation
B1: ITEM | C1: DESCRIPTION | D1: UNIT | E1: QTY | F1: RATE | G1: TOTAL
C2: Low Voltage Reticulation
B4: 1.1 | C4: Distribution Kiosk
C6: P&G's @ 10 % of items 2-15
C8: Supply and installation of new main distribution kiosk compliance to SANS 10142, Clause 6.6.1.20. | D8: No | E8: 1 | F8: 0 | G8: =F8*E8 -> 0
C10: Plinth | D10: No | E10: 1 | F10: 0 | G10: =E10*F10 -> 0
C12: Trenching
C13: Excavating, bedding, backfilling, consolidating and
C15: Pickable soil | D15: m³ | E15: =(530)*0.7 -> 371 | F15: 0 | G15: =F15*E15 -> 0 | I15: =80+60+40+110+65*4+60+70+85*2+60+135+135+110+130+90+60+60 -> 1630.00 | J15: =I15*0.8*0.4 -> 521.60
C16: Hard rock | D16: m³ | E16: =(530)*0.3 -> 159 | F16: 0 | G16: =F16*E16 -> 0
C18: Backfilling and compaction | D18: m³ | E18: =E16+E15 -> 530 | F18: 0 | G18: =F18*E18 -> 0 | I18: =I15-65 -> R 1,565.00
C20: 110mm diameter PVC sleeves for road crossings/cable entries into the building-rate must include for galvanised steel draw wires in spare sleeves and sealing of ends | D20: m | E20: 60 | F20: 0 | G20: =F20*E20 -> 0 | I20: =350/6 -> R 58.33
C21: 50mm diameter PVC sleeves for road crossings/cable entries into the building-rate must include for galvanised steel draw wires in spare sleeves and sealing of ends | D21: m | E21: 150 | F21: 0 | G21: =F21*E21 -> 0
B23: 1.4 | C23: Cable warning tape, 300mm above cables | D23: m | E23: 1650 | F23: 0 | G23: =F23*E23 -> 0 | I23: =343/100 -> R 3.43
B25: 1.5 | C25: Cable markers, above cables | D25: No | E25: 35 | F25: 0 | G25: =F25*E25 -> 0
C27: TOTAL FOR BILL - CARRIED FORWARD | G27: =SUM(G2:G25) -> 0
C28: TOTAL FOR BILL - BROUGHT FORWARD | G28: =G27 -> 0
B30: 1.6 | C30: 600/1000V PVC SWA cables,in trenches and sleeves, including labels. All LV cables to be supplied by Aberdare Cables or African Cables.
B32: 1.6.1 | C32: 6mm² 4core. | D32: m | E32: =110+60 -> 170 | F32: 0 | G32: =E32*F32 -> 0
B34: 1.6.1 | C34: 10mm² 2core. | D34: m | E34: 1630 | F34: 0 | G34: =E34*F34 -> 0
B36: 1.7 | C36: 600/1000V Cable terminations,
C37: for PVC PVC SWA PVC Cu cables, for indoor or outdoor
C38: use, as required
B40: 1.7.1 | C40: Gland no 3 complete with shroud | D40: No | E40: 4 | F40: 0 | G40: =F40*E40 -> 0
B42: 1.7.1 | C42: Gland no 2 complete with shroud | D42: No | E42: 3 | F42: 0 | G42: =E42*F42 -> 0
AA43: 10mm2 Cable Length
B44: 1.8 | C44: Earth conductors (HDHC), including ends
B46: 1.8.1 | C46: 6mm² | D46: m | E46: =E34 -> 1630 | F46: 0 | G46: =E46*F46 -> 0
B48: 1.8.1 | C48: 4mm² | D48: m | E48: =E32 -> 170 | F48: 0 | G48: =E48*F48 -> 0
B50: 1.9 | C50: Electrical Test
B52: 1.9.1 | C52: Testing of this section in the presence of
C53: the Employer and/or the Engineer, including
C54: all equipment, power generator, etc. | D54: No | E54: 1 | F54: 0 | G54: =F54*E54 -> 0
B56: 1.10 | C56: Others
B58: 1.10.1 | C58: Provide Sum of R 30,000.00 for supply and installation of borehole and fire pump cables. | D58: Sum | E58: 1 | F58: R30,000.00 | G58: =E58*F58 -> 30,000.00
C60: TOTAL FOR BILL - CARRIED FORWARD TO SUMMARY | G60: 0
E67: 750 | G67: =F67*E67 -> 0
E73: 45
E81: 4
E83: 12
E106: 4
E126: 8
C130: Type F Socket outlet | E130: 1 | F130: R1,250.00 | G130: =E130*F130 -> R1,250.00
E147: 15
E149: 8
E165: =50 -> 50
E173: 6

Sheet Sheet9 (hidden)
B2: CARLTONVILLE SOCIAL HOUSING DEVELOPMENT - THE MOEPLE (EXT. 20 - ERF 2204)
B3: SUMMARY: ELECTRICAL WORKS
B4: Section | C4: Description | D4: Quantity | E4: Unit | F4: Rate | G4: Amount | H4: Multiple | I4: Total
B6: 1 | C6: P & Gs | I6: =0.1*SUM(I8:I16) -> ZAR 2,849,470.50
B7: 3 | C7: MV Reticulation - Internal | D7: Lot | G7: ='[1]Int. MV Reticulation (X20)'!F91 -> ZAR 4,465,376.45 | I7: =G7 -> ZAR 4,465,376.45
B8: 4 | C8: LV Reticulation | D8: Lot | G8: ='[1]LV Reticulation (X20)'!F105 -> ZAR 9,099,855.00 | I8: =G8 -> ZAR 9,099,855.00
B9: 5 | C9: Building Electrification - Block A | D9: =(8.4+27.2+40.3*8)*3+5.4+5.2 -> 1084.6 | E9: m2 | F9: ZAR 500.00 | G9: =F9*D9 -> ZAR 542,300.00 | H9: 13 | I9: =G9*H9 -> ZAR 7,049,900.00
B10: 6 | C10: Building Electrification - Block B | D10: =(8.4+27.2+45*4+31.2*4)*3+5.4+5.2 -> 1031.8 | E10: m2 | F10: ZAR 500.00 | G10: =F10*D10 -> ZAR 515,900.00 | H10: 13 | I10: =G10*H10 -> ZAR 6,706,700.00
B11: 7 | C11: Building Electrification - Block C | D11: =D10 -> 1031.8 | E11: m2 | F11: ZAR 500.00 | G11: ZAR 515,900.00 | H11: 8 | I11: =G11*H11 -> ZAR 4,127,200.00
B12: 8 | C12: Building Electrification - Block D | D12: =3.5+4.2+45*3+31.2*3 -> 236.3 | E12: m2 | F12: ZAR 500.00 | G12: ZAR 118,150.00 | H12: 0 | I12: =G12*H12 -> 0
B13: 9 | C13: Building Electrification - Block E | D13: =(8.4+27.2+40.3*2+45*3+31.2*3)*3+5.4+5.2 -> 1045 | E13: m2 | F13: ZAR 500.00 | G13: ZAR 522,500.00 | H13: 2 | I13: =G13*H13 -> ZAR 1,045,000.00
B14: 10 | C14: Building Electrification - Lifestyle Centre | D14: 415 | E14: m2 | F14: ZAR 950.00 | G14: ZAR 394,250.00 | I14: =G14 -> ZAR 394,250.00
B15: 11 | C15: Building Electrification - Refuse Area | D15: 212 | E15: m2 | F15: ZAR 150.00 | G15: ZAR 31,800.00 | I15: ZAR 31,800.00
B16: 12 | C16: Building Electrification - Guard House | D16: 15 | E16: m2 | F16: - | G16: =40000 -> ZAR 40,000.00 | I16: ZAR 40,000.00
B17: 13 | C17: Electric Fencing | D17: 1480 | E17: m | F17: ZAR 150.00 | G17: =D17*F17 -> ZAR 222,000.00 | H17: 1 | I17: =G17*H17 -> ZAR 222,000.00
B18: 14 | C18: Satellite and TV installs | D18: 864 | E18: no. | F18: ZAR 2,250.00 | G18: =F18*D18 -> ZAR 1,944,000.00 | I18: =G18 -> ZAR 1,944,000.00
B19: 15 | C19: Area Lighting | D19: Sum | G19: ZAR 1,750,000.00 | I19: ZAR 1,750,000.00
B20: 16 | C20: Provisional Sum - Access Control and Security Cameras | D20: Sum | G20: ZAR 500,000.00 | I20: =G20 -> ZAR 500,000.00
B21: 17 | C21: Provisional Sum - Metering System | D21: Sum | G21: ZAR 2,600,000.00 | I21: =G21 -> ZAR 2,600,000.00
C23: SUB TOTAL 1 | I23: =SUM(I6:I21) -> ZAR 42,825,551.95
C24: 15% VAT | I24: =I23*0.15 -> ZAR 6,423,832.79
C25: TOTAL ESTIMATED COST (INCL. VAT) | I25: =I23+I24 -> ZAR 49,249,384.74

Sheet 1 BED (hidden)
A1: ITEM | B1: DESCRIPTION | C1: UNIT | D1: QUANTITY | E1: RATE | F1: AMOUNT
A3: 4 | B3: 1 BEDROOM UNIT
A6: 4.1 | B6: Excavation and Trenching
B7: MV Reticulation
B8: General trenching workfor sleeves along the routes as pegged out on site after co-ordination with other services
B10: Allowance must be made for the sifting of soil when required, removal and carting away of all stones and rocks including dumping off site. Backfilling and compaction shall be carried out as specified for overall siteworks.
A12: 4.1.1 | B12: Trenching through floor for sleeves | C12: m³ | E12: R 68.77 | F12: rate only
A14: 4.1.2 | B14: Excavation and backfilling in soft soil | C14: m³ | E14: R 103.00 | F14: rate only
A16: 4.1.3 | B16: Excavation and backfilling in hard rock | C16: m³ | E16: R 203.00 | F16: rate only
A18: 4.2 | B18: Cable and Data Sleeves
B20: Supply and installation of PVC Sleeves through floor construction to power distribution board and communication board complete with standard radius sleeve bends
A22: 4.2.1 | B22: 75mm Diameter for Data | C22: m | D22: 8 | E22: R 75.00 | F22: rate only
A24: 4.2.2 | B24: 110mm Diameter for power cable | C24: m | E24: R 105.00 | F24: rate only
B26: Radius bends:
A28: 4.2.3 | B28: 75mm Diameter | C28: No | E28: R 166.00 | F28: rate only
A30: 4.2.7 | B30: 110mm Diameter | C30: No | E30: R 198.00 | F30: rate only
A32: 4.3 | B32: Draw Wires
A34: 4.4.1 | B34: Supply and install a 0,6mm diameter galvanised draw wire in sleeves and conduit for data installation | C34: m | D34: 100 | E34: R 5.50 | F34: =E34*D34 -> 550.00
A36: 4.4 | B36: Distribution Boards
B38: Supply, delivery, storage and submission of workshop drawings for the Flush mounted architrave steel type power distribution boards complete with flush trays,doors,switch gear mounting trays, copper busbars, neutral and earth bars, correctly sized interna
A40: 4.4.1 | B40: Supply and install a Distribution Board c/w 1P prepaid meter | C40: No. | D40: 1 | E40: =3200+5000 -> R 8,200.00 | F40: =E40*D40 -> 8,200.00
B42: TOTAL FOR BILL - CARRIED FORWARD | F42: =SUM(F3:F41) -> R 8,750.00
A43: TOTAL FOR BILL - BROUGHT FORWARD | F43: =F42 -> R 8,750.00
A45: 4.5 | B45: Low Voltage PVC Cables
B46: Supply and installation of PVC SWA PVC cable and Bare Copper Earth Wire in sleeves and in trenches
A48: 4.4.1 | B48: 6mm 2 core PVC SWA Cable | C48: m | D48: 0 | E48: R 26.25
A50: 4.4.2 | B50: 4mm BCEW | C50: m | D50: 0 | E50: R 4.10
B52: Terminations:
A54: 4.4.3 | B54: 6mm 2 core cable | C54: No | D54: 2 | E54: R 90.00 | F54: =E54*D54 -> 180.00
A56: 4.4.4 | B56: 4mm BCEW | C56: No | D56: 2 | E56: R 40.00 | F56: =E56*D56 -> 80.00
A58: 4.6 | B58: Conduit Work
B60: Supply, delivery and installation of SABS approved PVC / Galvanised Conduits completed with all required conduit accessories.
B62: Built or Chase into brick or concrete work:
A64: 4.6.1 | B64: 20mm PVC Conduit | C64: m | D64: 0 | E64: R 18.00
A66: 4.6.2 | B66: 25mm PVC Conduit | C66: m | D66: 60 | E66: R 20.00 | F66: =E66*D66 -> 1,200.00
B68: In Ceiling space and Timber work or along Purlins
A70: 4.6.3 | B70: 20mm PVC Conduit | C70: m | D70: 70 | E70: R 18.00 | F70: =E70*D70 -> 1,260.00
A72: 4.6.4 | B72: 25mm PVC Conduit | C72: m | D72: 0 | E72: R 20.00
B78: Supply and installation of SABS approved conduit boxes, installed in the run of the conduit installation, cast into concrete and built into brickwork or flush inside false ceiling spaces, complete with all required conduit termination accessories.
A80: 4.6.6 | B80: 20mm diameter 4 way type(round box) | C80: No | D80: 15 | E80: R 55.00 | F80: =E80*D80 -> 825.00
A84: 4.7 | B84: Wall Boxes
B86: Supply and installation of SABS approved galvanised pressed steel wall boxes for building flush into brickwork or cast into concrete work.
B88: Flush mounted type:
A90: 4.4.1 | B90: 100 x 50 x 50mm | C90: No | D90: 4 | E90: R 55.00 | F90: =E90*D90 -> 220.00
A92: 4.4.2 | B92: 100 x 100 x 50mm | C92: No | D92: 6 | E92: R 60.00 | F92: =E92*D92 -> 360.00
B96: TOTAL FOR BILL - CARRIED FORWARD | F96: =SUM(F43:F95) -> R 12,875.00
A97: TOTAL FOR BILL - BROUGHT FORWARD | F97: =F96 -> R 12,875.00
A99: 4.8 | B99: PVC Wiring in conduits:
A101: 4.8.1 | B101: 2.5mm² for lights circuits | C101: m | D101: 250 | E101: R 9.00 | F101: =E101*D101 -> 2,250.00 | I101: =80*3 -> 240
A103: 4.8.2 | B103: 4mm² for plug sockets circuits | C103: m | D103: 250 | E103: R 16.00 | F103: =E103*D103 -> 4,000.00
B105: Stranded Bare Copper Earth Wire
B107: Supply and installation of stranded bare copper earth wire along with PVC wiring in conduits. Tendered rates shall make provision for wastage.
A109: 4.8.3 | B109: 2.5mm² | C109: m | D109: =D101 -> 250 | E109: R 6.00 | F109: =E109*D109 -> 1,500.00
A111: 4.8.4 | B111: 4mm² | C111: m | D111: =D103 -> 250 | E111: R 6.00 | F111: =E111*D111 -> 1,500.00
A113: 4.9 | B113: Light Switches
B115: Supply and installation of SABS approved type 16A flush and surface type light switches. Final paint finishes shall be confirmed at a later stage, allowance shall however be made as specified in the general specification. All boxes for flush mounting meas
A117: 4.9.1 | B117: 1 Lever 1 way | C117: No | D117: 3 | E117: R 95.00 | F117: =E117*D117 -> 285.00
A119: 4.9.2 | B119: 1 Lever 2 way | C119: No | D119: 1 | E119: R 140.00 | F119: =E119*D119 -> 140.00
A121: 4.9.3 | B121: 3 Lever 2 way | C121: No | D121: 0 | E121: R 160.00 | F121: =E121*D121 -> 0.00
A123: 4.9.4 | B123: 3 Lever 1 way | C123: No | D123: 0 | E123: R 180.00 | F123: =E123*D123 -> 0.00
A125: 4.9.4 | B125: Photo cell | C125: No | D125: 0 | E125: R 450.00 | F125: =E125*D125 -> 0.00
A127: 4.10 | B127: Socket Outlets
B129: Supply and installation of SABS approved switched and unswitched type flush and surface mounted type 16A switched socket outlets suitable for mounting in flush steel wall boxes or in steel pedestal units or on surface.
B131: The final colour of the paint finish shall be confirmed at a later stage, allowance shall be made as specified in the specification.
B133: All flush type boxes and special pedestals measured elsewhere.
B135: Flush switched sockets type:
A137: 4.10.1 | B137: 16A 3 pin single socket outlets | C137: No | D137: 1 | E137: R 150.00 | F137: =E137*D137 -> 150.00
A139: 4.10.2 | B139: 16A 3 ZA socket outlets | C139: No | D139: 3 | E139: R 175.00 | F139: =E139*D139 -> 525.00
A141: 4.10.3 | B141: Type D: Wall mounted TV/SAT point | C141: No | D141: 1 | E141: R 250.00 | F141: =E141*D141 -> 250.00
B143: TOTAL FOR BILL - CARRIED FORWARD | F143: =SUM(F97:F142) -> R 23,475.00
A144: TOTAL FOR BILL - BROUGHT FORWARD | F144: =F143 -> R 23,475.00
A146: 4.11 | B146: Light Fittings
B148: Suppy, delievery to site, storage and installation of the below specified light fittings complete with lamps, fixing material, mounting and tubes. Allowance must be made in the rates for all the required fixing materials and accessories.
B150: Fittings to be equal and similar approved to the below quoted manufacture.
A152: 4.11.1 | B152: Type F1: 2x14W 600mm Decorative Fluorescent Light | C152: No | D152: 0 | E152: R 830.00 | F152: =E152*D152 -> 0.00
O153: =60*12 -> 720
A154: 4.11.2 | B154: Type W1: 2x14W 600mm Decorative Vapour Fluorescent Light | C154: No | D154: 1 | E154: R 650.00 | F154: =E154*D154 -> 650.00
A156: 4.11.3 | B156: Type B1: Ceiling/Wall mounted bulkhead 2x 18W CFL | C156: No | D156: 4 | E156: R 550.00 | F156: =E156*D156 -> 2,200.00
A160: 4.12 | B160: Electrical Tests | O160: =150*9 -> 1350
B162: Making provision for the required inspection, tests and the commissioning of the complete installation and the issuing of the required certificate.
A164: 4.12.1 | B164: Building installation | C164: Sum | D164: 1 | E164: R 1,500.00 | F164: =E164*D164 -> 1,500.00
A166: 4.13 | B166: Others
A168: 4.13.1 | B168: Provide the sum of R1500-00 for earthing and lightning protection installations by specialist | C168: Sum | D168: 0 | E168: R 1,500.00 | F168: =E168*D168 -> 0.00
A170: 4.12.2 | B170: 40A Isolator points with complete and suitable fitting, for geyser or cooker | C170: No | D170: 1 | E170: R 350.00 | F170: =E170*D170 -> 350.00
B172: TOTAL FOR BILL - CARRIED FORWARD TO SUMMARY | F172: =SUM(F144:F171) -> R 28,175.00

Sheet 2 BED (hidden)
A1: ITEM | B1: DESCRIPTION | C1: UNIT | D1: QUANTITY | E1: RATE | F1: AMOUNT
A3: 4 | B3: 2 BEDROOM UNIT
A6: 4.1 | B6: Excavation and Trenching
B7: MV Reticulation
B8: General trenching workfor sleeves along the routes as pegged out on site after co-ordination with other services
B10: Allowance must be made for the sifting of soil when required, removal and carting away of all stones and rocks including dumping off site. Backfilling and compaction shall be carried out as specified for overall siteworks.
A12: 4.1.1 | B12: Trenching through floor for sleeves | C12: m³ | E12: R 68.77 | F12: rate only
A14: 4.1.2 | B14: Excavation and backfilling in soft soil | C14: m³ | E14: R 103.00 | F14: rate only
A16: 4.1.3 | B16: Excavation and backfilling in hard rock | C16: m³ | E16: R 203.00 | F16: rate only
A18: 4.2 | B18: Cable and Data Sleeves
B20: Supply and installation of PVC Sleeves through floor construction to power distribution board and communication board complete with standard radius sleeve bends
A22: 4.2.1 | B22: 75mm Diameter for Data | C22: m | D22: 8 | E22: R 75.00 | F22: rate only
A24: 4.2.2 | B24: 110mm Diameter for power cable | C24: m | E24: R 105.00 | F24: rate only
B26: Radius bends:
A28: 4.2.3 | B28: 75mm Diameter | C28: No | E28: R 166.00 | F28: rate only
A30: 4.2.7 | B30: 110mm Diameter | C30: No | E30: R 198.00 | F30: rate only
A32: 4.3 | B32: Draw Wires
A34: 4.4.1 | B34: Supply and install a 0,6mm diameter galvanised draw wire in sleeves and conduit for data installation | C34: m | D34: 150 | E34: R 5.50 | F34: =E34*D34 -> 825.00
A36: 4.4 | B36: Distribution Boards
B38: Supply, delivery, storage and submission of workshop drawings for the Flush mounted architrave steel type power distribution boards complete with flush trays,doors,switch gear mounting trays, copper busbars, neutral and earth bars, correctly sized interna
A40: 4.4.1 | B40: Supply and install a Distribution Board c/w 1P prepaid meter | C40: No. | D40: 1 | E40: =3200+5000 -> R 8,200.00 | F40: =E40*D40 -> 8,200.00
B42: TOTAL FOR BILL - CARRIED FORWARD | F42: =SUM(F3:F41) -> R 9,025.00
A43: TOTAL FOR BILL - BROUGHT FORWARD | F43: =F42 -> R 9,025.00
A45: 4.5 | B45: Low Voltage PVC Cables
B46: Supply and installation of PVC SWA PVC cable and Bare Copper Earth Wire in sleeves and in trenches
A48: 4.4.1 | B48: 6mm 2 core PVC SWA Cable | C48: m | D48: 0 | E48: R 26.25
A50: 4.4.2 | B50: 4mm BCEW | C50: m | D50: 0 | E50: R 4.10
B52: Terminations:
A54: 4.4.3 | B54: 6mm 2 core cable | C54: No | D54: 2 | E54: R 90.00 | F54: =E54*D54 -> 180.00
A56: 4.4.4 | B56: 4mm BCEW | C56: No | D56: 2 | E56: R 40.00 | F56: =E56*D56 -> 80.00
A58: 4.6 | B58: Conduit Work
B60: Supply, delivery and installation of SABS approved PVC / Galvanised Conduits completed with all required conduit accessories.
B62: Built or Chase into brick or concrete work:
A64: 4.6.1 | B64: 20mm PVC Conduit | C64: m | D64: 0 | E64: R 18.00
A66: 4.6.2 | B66: 25mm PVC Conduit | C66: m | D66: 75 | E66: R 20.00 | F66: =E66*D66 -> 1,500.00
B68: In Ceiling space and Timber work or along Purlins
A70: 4.6.3 | B70: 20mm PVC Conduit | C70: m | D70: 80 | E70: R 18.00 | F70: =E70*D70 -> 1,440.00
A72: 4.6.4 | B72: 25mm PVC Conduit | C72: m | D72: 0 | E72: R 20.00
B78: Supply and installation of SABS approved conduit boxes, installed in the run of the conduit installation, cast into concrete and built into brickwork or flush inside false ceiling spaces, complete with all required conduit termination accessories.
A80: 4.6.6 | B80: 20mm diameter 4 way type(round box) | C80: No | D80: 20 | E80: R 55.00 | F80: =E80*D80 -> 1,100.00
A84: 4.7 | B84: Wall Boxes
B86: Supply and installation of SABS approved galvanised pressed steel wall boxes for building flush into brickwork or cast into concrete work.
B88: Flush mounted type:
A90: 4.4.1 | B90: 100 x 50 x 50mm | C90: No | D90: 6 | E90: R 55.00 | F90: =E90*D90 -> 330.00
A92: 4.4.2 | B92: 100 x 100 x 50mm | C92: No | D92: 10 | E92: R 60.00 | F92: =E92*D92 -> 600.00
B96: TOTAL FOR BILL - CARRIED FORWARD | F96: =SUM(F43:F95) -> R 14,255.00
A97: TOTAL FOR BILL - BROUGHT FORWARD | F97: =F96 -> R 14,255.00
A99: 4.8 | B99: PVC Wiring in conduits:
A101: 4.8.1 | B101: 2.5mm² for lights circuits | C101: m | D101: 300 | E101: R 9.00 | F101: =E101*D101 -> 2,700.00 | I101: =80*3 -> 240
A103: 4.8.2 | B103: 4mm² for plug sockets circuits | C103: m | D103: 300 | E103: R 14.00 | F103: =E103*D103 -> 4,200.00
B105: Stranded Bare Copper Earth Wire
B107: Supply and installation of stranded bare copper earth wire along with PVC wiring in conduits. Tendered rates shall make provision for wastage.
A109: 4.8.3 | B109: 2.5mm² | C109: m | D109: =D101 -> 300 | E109: R 6.00 | F109: =E109*D109 -> 1,800.00
A111: 4.8.4 | B111: 4mm² | C111: m | D111: =D103 -> 300 | E111: R 6.00 | F111: =E111*D111 -> 1,800.00
A113: 4.9 | B113: Light Switches
B115: Supply and installation of SABS approved type 16A flush and surface type light switches. Final paint finishes shall be confirmed at a later stage, allowance shall however be made as specified in the general specification. All boxes for flush mounting meas
A117: 4.9.1 | B117: 1 Lever 1 way | C117: No | D117: 2 | E117: R 95.00 | F117: =E117*D117 -> 190.00
A119: 4.9.2 | B119: 1 Lever 2 way | C119: No | D119: 1 | E119: R 140.00 | F119: =E119*D119 -> 140.00
A121: 4.9.3 | B121: 3 Lever 2 way | C121: No | D121: 1 | E121: R 160.00 | F121: =E121*D121 -> 160.00
A123: 4.9.4 | B123: 3 Lever 1 way | C123: No | D123: 1 | E123: R 180.00 | F123: =E123*D123 -> 180.00
A125: 4.9.4 | B125: Photo cell | C125: No | D125: 0 | E125: R 450.00 | F125: =E125*D125 -> 0.00
A127: 4.10 | B127: Socket Outlets
B129: Supply and installation of SABS approved switched and unswitched type flush and surface mounted type 16A switched socket outlets suitable for mounting in flush steel wall boxes or in steel pedestal units or on surface.
B131: The final colour of the paint finish shall be confirmed at a later stage, allowance shall be made as specified in the specification.
B133: All flush type boxes and special pedestals measured elsewhere.
B135: Flush switched sockets type:
A137: 4.10.1 | B137: 16A 3 pin single socket outlets | C137: No | D137: 2 | E137: R 150.00 | F137: =E137*D137 -> 300.00
A139: 4.10.2 | B139: 16A 3 ZA socket outlets | C139: No | D139: 4 | E139: R 175.00 | F139: =E139*D139 -> 700.00
A141: 4.10.3 | B141: Type D: Wall mounted TV/SAT point | C141: No | D141: 1 | E141: R 250.00 | F141: =E141*D141 -> 250.00
B143: TOTAL FOR BILL - CARRIED FORWARD | F143: =SUM(F97:F142) -> R 26,675.00
A144: TOTAL FOR BILL - BROUGHT FORWARD | F144: =F143 -> R 26,675.00
A146: 4.11 | B146: Light Fittings
B148: Suppy, delievery to site, storage and installation of the below specified light fittings complete with lamps, fixing material, mounting and tubes. Allowance must be made in the rates for all the required fixing materials and accessories.
B150: Fittings to be equal and similar approved to the below quoted manufacture.
A152: 4.11.1 | B152: Type F1: 2x14W 600mm Decorative Fluorescent Light | C152: No | D152: 0 | E152: R 830.00 | F152: =E152*D152 -> 0.00
O153: =60*12 -> 720
A154: 4.11.2 | B154: Type W1: 2x14W 600mm Decorative Vapour Fluorescent Light | C154: No | D154: 1 | E154: R 650.00 | F154: =E154*D154 -> 650.00
A156: 4.11.3 | B156: Type B1: Ceiling/Wall mounted bulkhead 2x 18W CFL | C156: No | D156: 7 | E156: R 550.00 | F156: =E156*D156 -> 3,850.00
A160: 4.12 | B160: Electrical Tests | O160: =150*9 -> 1350
B162: Making provision for the required inspection, tests and the commissioning of the complete installation and the issuing of the required certificate.
A164: 4.12.1 | B164: Building installation | C164: Sum | D164: 1 | E164: R 1,500.00 | F164: =E164*D164 -> 1,500.00
A166: 4.13 | B166: Others
A168: 4.13.1 | B168: Provide the sum of R2500-00 for earthing and lightning protection installations by specialist | C168: Sum | D168: 0 | E168: R 1,500.00 | F168: =E168*D168 -> 0.00
A170: 4.12.2 | B170: 40A Isolator points with complete and suitable fitting, for geyser or cooker | C170: No | D170: 1 | E170: R 350.00 | F170: =E170*D170 -> 350.00
B172: TOTAL FOR BILL - CARRIED FORWARD TO SUMMARY | F172: =SUM(F144:F171) -> R 33,025.00

Sheet Administration Block
B2: ITEM | C2: DESCRIPTION | D2: UNIT | E2: QUANTITY | F2: RATE | G2: AMOUNT
B4: 2 | C4: Administration Block
B6: 2.1 | C6: P&G's @ 10 % of items 2-15
C7: MV Reticulation
B8: 3.1 | C8: General trenching work for sleeves along the routes as pegged out on site after co-ordination with other services
B10: 4.1 | C10: Allowance must be made for the sifting of soil when required, removal and carting away of all stones and rocks including dumping off site. Backfilling and compaction shall be carried out as specified for overall siteworks.
B12: 5.1 | C12: Trenching through floor for sleeves | D12: m³ | G12: rate only
B14: 6.1
C15: Excavation and backfilling in hard rock | D15: m³ | G15: rate only
B16: 7.1 | C16: Cable and Data Sleeves
B18: 8.1 | C18: Supply and installation of PVC Sleeves through floor construction to power distribution board and communication board complete with standard radius sleeve bends
B20: 9.1 | C20: 50 mm Diameter for Power Cables | D20: m | E20: 60 | F20: 0 | G20: =F20*E20 -> 0
C21: 110mm Diameter for power cable | D21: m | G21: rate only
C23: Radius bends:
B25: 2.2.2 | C25: 75mm Diameter | D25: No | G25: rate only
B27: 2.2.2 | C27: 110mm Diameter | D27: No | G27: rate only
B29: 2.2 | C29: Draw Wires
B31: 2.2.1 | C31: Supply and install a 0,6mm diameter galvanised draw wire in sleeves and conduit for data installation | D31: m | E31: =E63+E67 -> 1100 | F31: 0 | G31: =E31*F31 -> 0
B33: 2.2 | C33: Distribution Boards
C35: Supply, delivery, storage and submission of workshop drawings for the Flush mounted architrave steel type power distribution boards complete with flush trays,doors,switch gear mounting trays, copper busbars, neutral and earth bars, correctly sized internal
B37: 2.2.1 | C37: Supply and install a Distribution Board | D37: No. | E37: 1 | F37: 0 | G37: =F37*E37 -> 0
C39: TOTAL FOR BILL - CARRIED FORWARD | G39: =SUM(G4:G38) -> 0
B40: TOTAL FOR BILL - BROUGHT FORWARD | G40: =G39 -> 0
B42: 2.5 | C42: Low Voltage PVC Cables
C43: Supply and installation of PVC SWA PVC cable and Bare Copper Earth Wire in sleeves and in trenches
B45: 2.5.1 | C45: 10mm 4 core PVC SWA Cable | D45: m | G45: rate only
B47: 2.5.2 | C47: 4mm BCEW | D47: m | G47: rate only
C49: Terminations:
B51: 2.5.2 | C51: 16mm 2 core cable | D51: No | G51: rate only
B53: 2.5.2 | C53: 10mm BCEW | D53: No | G53: rate only
B55: 2.6 | C55: Conduit Work
C57: Supply, delivery and installation of SABS approved PVC Conduits completed with all required conduit accessories.
C59: Built or Chase into brick or concrete work:
B61: 2.6.1 | C61: 20mm PVC conduit | D61: m | G61: rate only
B63: 2.6.2 | C63: 25mm PVC conduit | D63: m | E63: 650 | F63: 0 | G63: =F63*E63 -> 0
C65: In Ceiling space and Timber work or along Purlins
B67: 2.6.2 | C67: 20mm PVC conduit | D67: m | E67: 450 | F67: 0 | G67: =F67*E67 -> 0
B69: 2.6.2 | C69: 25mm PVC conduit | D69: m | G69: rate only
B71: 2.7 | C71: Supply and installation of SABS approved conduit boxes, installed in the run of the conduit installation, cast into concrete and built into brickwork or flush inside false ceiling spaces, complete with all required conduit termination accessories.
B73: 2.7.1 | C73: 20mm diameter 4 way type(round box) | D73: No | E73: 45 | F73: 0 | G73: =F73*E73 -> 0
B75: 2.7 | C75: Wall Boxes
C77: Supply and installation of SABS approved galvanised pressed steel wall boxes for building flush into brickwork or cast into concrete work.
C79: Flush mounted type:
B81: 2.7.1 | C81: 100 x 50 x 50mm | D81: No | E81: 4 | F81: 0 | G81: =F81*E81 -> 0
B83: 2.7.2 | C83: 100 x 100 x 50mm | D83: No | E83: 12 | F83: 0 | G83: =F83*E83 -> 0
C85: TOTAL FOR BILL - CARRIED FORWARD | G85: =SUM(G39:G84) -> 0
B86: TOTAL FOR BILL - BROUGHT FORWARD | G86: =G85 -> 0
B88: 2.8 | C88: PVC Wiring in conduits:
B90: 2.8.1 | C90: 2.5mm² for lights circuits | D90: m | E90: 2500 | F90: 0 | G90: =F89*E89 -> 0
B92: 2.8.2 | C92: 4mm² for plug sockets circuits | D92: m | E92: 1500 | F92: 0 | G92: =F92*E92 -> 0
C94: Stranded Bare Copper Earth Wire
C96: Supply and installation of stranded bare copper earth wire along with PVC wiring in conduits. Tendered rates shall make provision for wastage.
B98: 2.8.2 | C98: 2.5mm² | D98: m | E98: =E90 -> 2500 | F98: 0 | G98: =F98*E98 -> 0
B100: 2.8.2 | C100: 4mm² | D100: m | G100: rate only
B102: 2.9 | C102: Light Switches
C104: Supply and installation of SABS approved type 16A flush and surface type light switches. Final paint finishes shall be confirmed at a later stage, allowance shall however be made as specified in the general specification.
B106: 2.9.1 | C106: 1 Lever 1 way | D106: No | E106: 4 | F106: 0 | G106: =F106*E106 -> 0
B108: 2.9.2 | C108: 1 Lever 2 way | D108: No | E108: 2 | F108: 0 | G108: =E108*F108 -> 0
B110: 2.9.2 | C110: 2 Lever 2 way | D110: No | G110: rate only
B112: 2.9.2 | C112: 2 Lever 1 way | D112: No | G112: rate only
B114: 2.9.5 | C114: Photo cell | D114: No | E114: 1 | F114: 0 | G114: =E114*F114 -> 0
B116: 2.9.6 | C116: Motion Sensor | D116: No | E116: 3 | F116: 0 | G116: =E116*F116 -> 0
B118: 2.1 | C118: Socket Outlets
C120: Supply and installation of SABS approved switched and unswitched type flush and surface mounted type 16A switched socket outlets suitable for mounting in flush steel wall boxes or in steel pedestal units or on surface.
C122: The final colour of the paint finish shall be confirmed at a later stage, allowance shall be made as specified in the specification.
C124: All flush type boxes and special pedestals measured elsewhere.
C126: Flush switched sockets type:
B128: 2.10.1 | C128: 16A single socket outlets - ZA plug | D128: No | E128: 18 | F128: 0 | G128: =E128*F128 -> 0
B130: 2.10.2 | C130: Type F Socket outlet | D130: No | E130: 1 | F130: 0 | G130: =E130*F130 -> 0
B132: 2.10.2 | C132: Type D Socket outlet | D132: No | G132: rate only
B134: 2.10.2 | C134: Power Pole | D134: No | G134: rate only
C136: TOTAL FOR BILL - CARRIED FORWARD | G136: =SUM(G86:G125) -> 0
B137: TOTAL FOR BILL - BROUGHT FORWARD | G137: =G136 -> 0
B139: 2.11 | C139: Light Fittings
C141: Supply, delivery to site, storage and installation of the below specified light fittings complete with lamps, fixing material, mounting and tubes. Allowance must be made in the rates for all the required fixing materials and accessories.
C143: Fittings to be equal and similar approved to the below quoted manufacture.
B145: 2.11.1 | C145: Opal E-Battien 4FT 1140mm 45W - 4000K - IP20 | D145: No | E145: 29 | F145: 0 | G145: =E145*F145 -> 0
P146: =60*12 -> 720
B147: 2.11.2 | C147: 15W LED Round Bulkhead 4000K | D147: No | E147: 15 | F147: 0 | G147: =F147*E147 -> 0
B149: 2.11.2 | C149: 8 Inch 8W LED Downlight | D149: No | E149: 8 | F149: 0 | G149: =E149*F149 -> 0
B151: 2.12 | C151: Electrical Tests
C153: Making provision for the required inspection, tests and the commissioning of the complete installation and the issuing of the required certificate.
B155: 2.12.1 | C155: Building installation | D155: Sum | E155: 1 | F155: R14,500.00 | G155: =F155*E155 -> R14,500.00
B157: 2.12 | C157: Others
B159: 2.12.1 | C159: 200 x 200mm - Telephone & Data DB | D159: No | E159: 1 | F159: 0 | G159: =E159*F159 -> 0
B161: 2.12.2 | C161: 100 x 100 x 50mm - Draw box for Communication complete with blank cover | D161: No | E161: 4 | F161: 0 | G161: =E161*F161 -> 0
B163: 2.12.2 | C163: 2 compartment power skirting complete with socket outlets and blabks for telephone and data points. | D163: m | E163: 150 | F163: 0 | G163: =E163*F163 -> 0
B165: 2.12.4 | C165: Provide the Sum of R 42,500.00 for earthing and lightning protection | D165: Sum | E165: 1 | F165: R42,500.00 | G165: =E165*F165 -> R42,500.00
B167: 2.12.5 | C167: 20A 2pole Isolator, in suitable York Box, for HVAC | D167: No | E167: 17 | F167: 0 | G167: =E167*F167 -> 0
B169: 2.12.6 | C169: 40A Isolator points with complete and suitable fitting, for stove | D169: No | E169: 1 | F169: 0 | G169: =E169*F169 -> 0
B171: 2,12,7 | C171: Provide the sum of R 55 000,00 for the relocation of of existing server from old admin to the new admin | D171: No | E171: Sum | F171: R55,000.00 | G171: =F171 -> R55,000.00
C173: TOTAL FOR BILL PER BLOCK (2X FLOORS)- CARRIED FORWARD TO SUMMARY | G173: 0
E175: 6

Sheet ComputerLaboratory
B2: ITEM | C2: DESCRIPTION | D2: UNIT | E2: QUANTITY | F2: RATE | G2: AMOUNT
B4: 3 | C4: Computer Laboratory
B6: 3.1 | C6: P&G's @ 10 % of items 2-15
B8: 4.1 | C8: General trenching work for sleeves along the routes as pegged out on site after co-ordination with other services
B10: 5.1 | C10: Allowance must be made for the sifting of soil when required, removal and carting away of all stones and rocks including dumping off site. Backfilling and compaction shall be carried out as specified for overall siteworks.
B12: 6.1 | C12: Trenching through floor for sleeves | D12: m³ | G12: rate only
B14: 7.1 | C14: Excavation and backfilling in soft soil
D15: m³ | G15: rate only
B16: 8.1 | C16: Cable and Data Sleeves
B18: 9.1 | C18: Supply and installation of PVC Sleeves through floor construction to power distribution board and communication board complete with standard radius sleeve bends
B20: 10.1 | C20: 50 mm Diameter for Power Cables | D20: m | E20: 60 | F20: 0 | G20: =F20*E20 -> 0
C21: 110mm Diameter for power cable | D21: m | G21: rate only
C23: Radius bends:
B25: 3.2.3 | C25: 75mm Diameter | D25: No | G25: rate only
B27: 3.2.3 | C27: 110mm Diameter | D27: No | G27: rate only
B29: 3.3 | C29: Draw Wires
B31: 3.3.1 | C31: Supply and install a 0,6mm diameter galvanised draw wire in sleeves and conduit for data installation | D31: m | E31: =E63+E67 -> 800 | F31: 0 | G31: =F31*E31 -> 0
B33: 3.3 | C33: Distribution Boards
C35: Supply, delivery, storage and submission of workshop drawings for the Flush mounted architrave steel type power distribution boards complete with flush trays,doors,switch gear mounting trays, copper busbars, neutral and earth bars, correctly sized internal
B37: 3.3.1 | C37: Supply and install a Distribution Board | D37: No. | E37: 1 | F37: 0 | G37: =F37*E37 -> 0
C39: TOTAL FOR BILL - CARRIED FORWARD | G39: =SUM(G4:G38) -> 0
B40: TOTAL FOR BILL - BROUGHT FORWARD | G40: =G39 -> 0
B42: 3.3 | C42: Low Voltage PVC Cables
C43: Supply and installation of PVC SWA PVC cable and Bare Copper Earth Wire in sleeves and in trenches
B45: 3.3.1 | C45: 4mm 4 core PVC SWA Cable | D45: m | G45: rate only
B47: 3.3.2 | C47: 2.5mm BCEW | D47: m | G47: rate only
C49: Terminations:
B51: 3.3.3 | C51: 10mm 2 core cable | D51: No | E51: 2 | F51: 0 | G51: =E51*F51 -> 0
B53: 3.3.3 | C53: 6mm BCEW | D53: No | E53: 1 | F53: 0 | G53: =E53*F53 -> 0
B55: 3.3 | C55: Conduit Work
C57: Supply, delivery and installation of SABS approved PVC Conduits completed with all required conduit accessories.
C59: Built or Chase into brick or concrete work:
B61: 3.3.1 | C61: 20mm PVC conduit | D61: m | G61: rate only
B63: 3.3.2 | C63: 25mm PVC conduit | D63: m | E63: 350 | F63: 0 | G63: =F63*E63 -> 0
C65: In Ceiling space and Timber work or along Purlins
B67: 3.3.3 | C67: 20mm PVC conduit | D67: m | E67: 450 | F67: 0 | G67: =F67*E67 -> 0
B69: 3.3.3 | C69: 25mm PVC conduit | D69: m | G69: rate only
B71: 3.3 | C71: Supply and installation of SABS approved conduit boxes, installed in the run of the conduit installation, cast into concrete and built into brickwork or flush inside false ceiling spaces, complete with all required conduit termination accessories.
B73: 3.3.1 | C73: 20mm diameter 4 way type(round box) | D73: No | E73: 45 | F73: 0 | G73: =F73*E73 -> 0
B75: 3.3 | C75: Wall Boxes
C77: Supply and installation of SABS approved galvanised pressed steel wall boxes for building flush into brickwork or cast into concrete work.
C79: Flush mounted type:
B81: 3.3.1 | C81: 100 x 50 x 50mm | D81: No | E81: 4 | F81: 0 | G81: =F81*E81 -> 0
B83: 3.3.2 | C83: 100 x 100 x 50mm | D83: No | E83: 12 | F83: 0 | G83: =F83*E83 -> 0
C85: TOTAL FOR BILL - CARRIED FORWARD | G85: =SUM(G40:G84) -> 0
B86: TOTAL FOR BILL - BROUGHT FORWARD | G86: =G85 -> 0
B88: 3.8 | C88: PVC Wiring in conduits:
B90: 3.8.1 | C90: 2.5mm² house wire for lights circuits | D90: m | E90: 400 | F90: 0 | G90: =F90*E90 -> 0 | J90: =970/100 -> R9.70
B92: 3.8.2 | C92: 4mm² house wire for lights socket outlets and isolators | D92: m | E92: 450 | F92: 0 | G92: =F92*E92 -> 0
C94: Stranded Bare Copper Earth Wire
C96: Supply and installation of stranded bare copper earth wire along with PVC wiring in conduits. Tendered rates shall make provision for wastage.
B98: 3.8.3 | C98: 1.5mm² | D98: m | E98: =E90 -> 400 | F98: 0 | G98: =F98*E98 -> 0
B100: 3.8.3 | C100: 4mm² | D100: m | G100: rate only
B102: 3.9 | C102: Light Switches
C104: Supply and installation of SABS approved type 16A flush and surface type light switches. Final paint finishes shall be confirmed at a later stage, allowance shall however be made as specified in the general specification.
B106: 3.9.1 | C106: 1 Lever 1 way | D106: No | E106: 4 | F106: 0 | G106: =F106*E106 -> 0
B108: 3.9.2 | C108: 1 Lever 2 way | D108: No | G108: rate only
B110: 3.9.3 | C110: 3 Lever 2 way | D110: No | G110: rate only
B112: 3.9.3 | C112: 3600 occupancy sensor | D112: No | G112: rate only
B114: 3.9.3 | C114: Photo cell | D114: No | E114: 1 | F114: 0 | G114: =E114*F114 -> 0
B116: 3.1 | C116: Socket Outlets
C118: Supply and installation of SABS approved switched and unswitched type flush and surface mounted type 16A switched socket outlets suitable for mounting in flush steel wall boxes or in steel pedestal units or on surface.
C120: The final colour of the paint finish shall be confirmed at a later stage, allowance shall be made as specified in the specification.
C122: All flush type boxes and special pedestals measured elsewhere.
C124: Flush switched sockets type:
B126: 3.10.1 | C126: 16A single socket outlets - ZA plug | D126: No | E126: 8 | F126: 0 | G126: =F126*E126 -> 0
B128: 3.10.2 | C128: 16A double socket outlets - ZA plug | D128: No | G128: Rate only
B130: 3.10.3 | C130: Type F Socket outlet | D130: No | E130: 1 | F130: 0 | G130: =E130*F130 -> 0
B132: 3.10.3 | C132: Power Pole | D132: No | G132: rate only
C134: TOTAL FOR BILL - CARRIED FORWARD | G134: =SUM(G86:G133) -> 0
B135: TOTAL FOR BILL - BROUGHT FORWARD | G135: =G134 -> 0
B137: 3.11 | C137: Light Fittings
C139: Supply, delivery to site, storage and installation of the below specified light fittings complete with lamps, fixing material, mounting and tubes. Allowance must be made in the rates for all the required fixing materials and accessories.
C141: Fittings to be equal and similar approved to the below quoted manufacture.
B143: 3.11.1 | C143: Type F1: 2x14W 600mm LED decorative fluorescent light | D143: No | G143: rate only
P144: =60*12 -> 720
B145: 3.11.2 | C145: Type W1: 2x14W 600mm LED decorative vapour fluorescent light | D145: No | G145: rate only
B147: 3.11.3 | C147: Opal E-Battien 4FT 1140mm 45W - 4000K - IP20 | D147: No | E147: 15 | F147: 0 | G147: =E147*F147 -> 0
B149: 3.11.3 | C149: 15W LED Round Bulkhead 4000K | D149: No | E149: 8 | F149: 0 | G149: =F149*E149 -> 0
B151: 3.11.3 | C151: Suspended cosmos 100W IP65 1-10V dimmable high bay | D151: No | G151: rate only
B153: 3.12 | C153: Electrical Tests
C155: Making provision for the required inspection, tests and the commissioning of the complete installation and the issuing of the required certificate.
B157: 3.12.1 | C157: Building installation | D157: Sum | E157: 1 | F157: R6,000.00 | G157: =F157*E157 -> R6,000.00
B159: 3.13 | C159: Others
B161: 3.13.1 | C161: 300 x 300mm - Telephone & Data DB | D161: No | G161: Rate only
B163: 3.13.2 | C163: 100 x 100 x 50mm - Draw box for Communication complete with blank cover | D163: No | G163: Rate only
B165: 3.13.3 | C165: 2 compartment power skirting complete with socket outlets and blabks for telephone and data points. | D165: m | E165: =50 -> 50 | F165: 0 | G165: =E165*F165 -> 0
B167: 3.13.3 | C167: DATA and Telephone points on must include draw box, blank cover plate, etc, | D167: No | G167: Rate only
B169: 3.13.3 | C169: Provide the Sum of R 26,500.00 for earthing and lightning protection | D169: Sum | E169: 1 | F169: R26,500.00 | G169: =E169*F169 -> R26,500.00
B171: 3.13.3 | C171: Provide the sum of R 45 000,00 for the removal of electrical installations in the existing admin | D171: No | E171: 1 | F171: 0 | G171: =E171*F171 -> 0
B173: 3.13.3 | C173: 20A Isolator points with complete and suitable fitting, for HVAC | D173: No | E173: 6 | F173: 0 | G173: =E173*F173 -> 0
C175: TOTAL FOR BILL PER BLOCK (3X FLOORS)- CARRIED FORWARD TO SUMMARY | G175: 0

Sheet Home Economics
B2: ITEM | C2: DESCRIPTION | D2: UNIT | E2: QUANTITY | F2: RATE | G2: AMOUNT
B4: 4 | C4: Home Economics
B6: 4.1 | C6: P&G's @ 10 % of items 2-15
B8: 5.1 | C8: General trenching work for sleeves along the routes as pegged out on site after co-ordination with other services
B10: 6.1 | C10: Allowance must be made for the sifting of soil when required, removal and carting away of all stones and rocks including dumping off site. Backfilling and compaction shall be carried out as specified for overall siteworks.
B12: 7.1 | C12: Trenching through floor for sleeves | D12: m³ | G12: rate only
B14: 8.1 | C14: Excavation and backfilling in soft soil
D15: m³ | G15: rate only
B16: 9.1 | C16: Cable and Data Sleeves
B18: 10.1 | C18: Supply and installation of PVC Sleeves through floor construction to power distribution board and communication board complete with standard radius sleeve bends
B20: 11.1 | C20: 50 mm Diameter for Power Cables | D20: m | E20: 60 | F20: 0 | G20: =F20*E20 -> 0
C21: 110mm Diameter for power cable | D21: m | G21: rate only
C23: Radius bends:
B25: 4.2.4 | C25: 75mm Diameter | D25: No | G25: rate only
B27: 4.2.4 | C27: 110mm Diameter | D27: No | G27: rate only
B29: 4.4 | C29: Draw Wires
B31: 4.4.1 | C31: Supply and install a 0,6mm diameter galvanised draw wire in sleeves and conduit for data installation | D31: m | E31: =E63+E67 -> 800 | F31: 0 | G31: =F31*E31 -> 0
B33: 4.4 | C33: Distribution Boards
C35: Supply, delivery, storage and submission of workshop drawings for the Flush mounted architrave steel type power distribution boards complete with flush trays,doors,switch gear mounting trays, copper busbars, neutral and earth bars, correctly sized internal
B37: 4.4.1 | C37: Supply and install a Distribution Board | D37: No. | E37: 1 | F37: 0 | G37: =F37*E37 -> 0
C39: TOTAL FOR BILL - CARRIED FORWARD | G39: =SUM(G4:G38) -> 0
B40: TOTAL FOR BILL - BROUGHT FORWARD | G40: =G39 -> 0
B42: 4.4 | C42: Low Voltage PVC Cables
C43: Supply and installation of PVC SWA PVC cable and Bare Copper Earth Wire in sleeves and in trenches
B45: 4.4.1 | C45: 4mm 4 core PVC SWA Cable | D45: m | G45: rate only
B47: 4.4.2 | C47: 2.5mm BCEW | D47: m | G47: rate only
C49: Terminations:
B51: 4.4.4 | C51: 10mm 2 core cable | D51: No | E51: 2 | F51: 0 | G51: =E51*F51 -> 0
B53: 4.4.4 | C53: 6mm BCEW | D53: No | E53: 1 | F53: 0 | G53: =E53*F53 -> 0
B55: 4.4 | C55: Conduit Work
C57: Supply, delivery and installation of SABS approved PVC Conduits completed with all required conduit accessories.
C59: Built or Chase into brick or concrete work:
B61: 4.4.1 | C61: 20mm PVC conduit | D61: m | G61: rate only
B63: 4.4.2 | C63: 25mm PVC conduit | D63: m | E63: 350 | F63: 0 | G63: =F63*E63 -> 0
C65: In Ceiling space and Timber work or along Purlins
B67: 4.4.4 | C67: 20mm PVC conduit | D67: m | E67: 450 | F67: 0 | G67: =F67*E67 -> 0
B69: 4.4.4 | C69: 25mm PVC conduit | D69: m | G69: rate only
B71: 4.4 | C71: Supply and installation of SABS approved conduit boxes, installed in the run of the conduit installation, cast into concrete and built into brickwork or flush inside false ceiling spaces, complete with all required conduit termination accessories.
B73: 4.4.1 | C73: 20mm diameter 4 way type(round box) | D73: No | E73: 45 | F73: 0 | G73: =F73*E73 -> 0
B75: 4.4 | C75: Wall Boxes
C77: Supply and installation of SABS approved galvanised pressed steel wall boxes for building flush into brickwork or cast into concrete work.
C79: Flush mounted type:
B81: 4.4.1 | C81: 100 x 50 x 50mm | D81: No | E81: 4 | F81: 0 | G81: =F81*E81 -> 0
B83: 4.4.2 | C83: 100 x 100 x 50mm | D83: No | E83: 12 | F83: 0 | G83: =F83*E83 -> 0
C85: TOTAL FOR BILL - CARRIED FORWARD | G85: =SUM(G40:G84) -> 0
B86: TOTAL FOR BILL - BROUGHT FORWARD | G86: =G85 -> 0
B88: 4.8 | C88: PVC Wiring in conduits:
B90: 4.8.1 | C90: 2.5mm² house wire for lights circuits | D90: m | E90: 400 | F90: 0 | G90: =F90*E90 -> 0 | J90: =970/100 -> R9.70
B92: 4.8.2 | C92: 4mm² house wire for lights socket outlets and isolators | D92: m | E92: 450 | F92: 0 | G92: =F92*E92 -> 0
C94: Stranded Bare Copper Earth Wire
C96: Supply and installation of stranded bare copper earth wire along with PVC wiring in conduits. Tendered rates shall make provision for wastage.
B98: 4.8.4 | C98: 1.5mm² | D98: m | E98: =E90 -> 400 | F98: 0 | G98: =F98*E98 -> 0
B100: 4.8.4 | C100: 4mm² | D100: m | G100: rate only
B102: 4.9 | C102: Light Switches
C104: Supply and installation of SABS approved type 16A flush and surface type light switches. Final paint finishes shall be confirmed at a later stage, allowance shall however be made as specified in the general specification.
B106: 4.9.1 | C106: 1 Lever 1 way | D106: No | E106: 4 | F106: 0 | G106: =F106*E106 -> 0
B108: 4.9.2 | C108: 1 Lever 2 way | D108: No | G108: rate only
B110: 4.9.4 | C110: 3 Lever 2 way | D110: No | G110: rate only
B112: 4.9.4 | C112: 3600 occupancy sensor | D112: No | G112: rate only
B114: 4.9.4 | C114: Photo cell | D114: No | E114: 1 | F114: 0 | G114: =E114*F114 -> 0
B116: 4.1 | C116: Socket Outlets
C118: Supply and installation of SABS approved switched and unswitched type flush and surface mounted type 16A switched socket outlets suitable for mounting in flush steel wall boxes or in steel pedestal units or on surface.
C120: The final colour of the paint finish shall be confirmed at a later stage, allowance shall be made as specified in the specification.
C122: All flush type boxes and special pedestals measured elsewhere.
C124: Flush switched sockets type:
B126: 4.10.1 | C126: 16A single socket outlets - ZA plug | D126: No | E126: 8 | F126: 0 | G126: =F126*E126 -> 0
B128: 4.10.2 | C128: 16A double socket outlets - ZA plug | D128: No | G128: Rate only
B130: 4.10.4 | C130: Type F Socket outlet | D130: No | G130: rate only
B132: 4.10.4 | C132: Power Pole | D132: No | G132: rate only
C134: TOTAL FOR BILL - CARRIED FORWARD | G134: =SUM(G86:G133) -> 0
B135: TOTAL FOR BILL - BROUGHT FORWARD | G135: =G134 -> 0
B137: 4.11 | C137: Light Fittings
C139: Supply, delivery to site, storage and installation of the below specified light fittings complete with lamps, fixing material, mounting and tubes. Allowance must be made in the rates for all the required fixing materials and accessories.
C141: Fittings to be equal and similar approved to the below quoted manufacture.
B143: 4.11.1 | C143: Type F1: 2x14W 600mm LED decorative fluorescent light | D143: No | G143: rate only
P144: =60*12 -> 720
B145: 4.11.2 | C145: Type W1: 2x14W 600mm LED decorative vapour fluorescent light | D145: No | G145: rate only
B147: 4.11.4 | C147: Opal E-Battien 4FT 1140mm 45W - 4000K - IP20 | D147: No | E147: 8 | F147: 0 | G147: =E147*F147 -> 0
B149: 4.11.4 | C149: 15W LED Round Bulkhead 4000K | D149: No | E149: 12 | F149: 0 | G149: =F149*E149 -> 0
B151: 4.11.4 | C151: Suspended cosmos 100W IP65 1-10V dimmable high bay | D151: No | G151: rate only
B153: 4.12 | C153: Electrical Tests
C155: Making provision for the required inspection, tests and the commissioning of the complete installation and the issuing of the required certificate.
B157: 4.12.1 | C157: Building installation | D157: Sum | E157: 1 | F157: R6,000.00 | G157: =F157*E157 -> R6,000.00
B159: 4.14 | C159: Others
B161: 4.14.1 | C161: 300 x 300mm - Telephone & Data DB | D161: No | G161: Rate only
B163: 4.14.2 | C163: 100 x 100 x 50mm - Draw box for Communication complete with blank cover | D163: No | G163: Rate only
B165: 4.14.4 | C165: 2 compartment power skirting complete with socket outlets and blabks for telephone and data points. | D165: m | G165: rate only
B167: 4.14.4 | C167: DATA and Telephone points on must include draw box, blank cover plate, etc, | D167: No | G167: Rate only
B169: 4.14.4 | C169: Provide the Sum of R 26,500.00 for earthing and lightning protection | D169: Sum | E169: 1 | F169: R26,500.00 | G169: =E169*F169 -> R26,500.00
B171: 4.14.4 | C171: Provide the sum of R 55 000,00 for the removal of electrical installations in the existing cooking area | D171: No | E171: 1 | F171: 0 | G171: =E171*F171 -> 0
B173: 4.14.4 | C173: 20A TP Isolator points with complete and suitable fitting, for extraction fan | D173: No | E173: 4 | F173: 0 | G173: =E173*F173 -> 0
C175: TOTAL FOR BILL PER BLOCK (3X FLOORS)- CARRIED FORWARD TO SUMMARY | G175: 0

Sheet School Hall
C2: DESCRIPTION | D2: UNIT | E2: QUANTITY | F2: RATE | G2: AMOUNT
B4: 5 | C4: School Hall
B6: 5.1 | C6: P&G's @ 10 % of items 2-15
C7: MV Reticulation
B8: 6.1 | C8: General trenching work for sleeves along the routes as pegged out on site after co-ordination with other services
B10: 7.1 | C10: Allowance must be made for the sifting of soil when required, removal and carting away of all stones and rocks including dumping off site. Backfilling and compaction shall be carried out as specified for overall siteworks.
B12: 8.1 | C12: Trenching through floor for sleeves | D12: m³ | F12: =SUM(F6:F11) -> 0 | G12: rate only
C13: Provide the provissional sum of ZAR 1,550,900.00 for the refurbishment of Block A,B,C,D,E and Administration block ( This includes small power and lighting and earthing and lightning protection)
B14: 9.1
C15: Excavation and backfilling in hard rock | D15: m³ | G15: rate only
B16: 10.1 | C16: Cable and Data Sleeves
B18: 11.1 | C18: Supply and installation of PVC Sleeves through floor construction to power distribution board and communication board complete with standard radius sleeve bends
B20: 12.1 | C20: 50 mm Diameter for Power Cables | D20: m | E20: 60 | F20: 0 | G20: =F20*E20 -> 0
C21: 110mm Diameter for power cable | D21: m | G21: rate only
C23: Radius bends:
B25: 5.2.5 | C25: 75mm Diameter | D25: No | G25: rate only
B27: 5.2.5 | C27: 110mm Diameter | D27: No | G27: rate only
B29: 5.5 | C29: Draw Wires
B31: 5.5.1 | C31: Supply and install a 0,6mm diameter galvanised draw wire in sleeves and conduit for data installation | D31: m | E31: =E63+E67 -> 950 | F31: 0 | G31: =F31*E31 -> 0
B33: 5.5 | C33: Distribution Boards
C35: Supply, delivery, storage and submission of workshop drawings for the Flush mounted architrave steel type power distribution boards complete with flush trays,doors,switch gear mounting trays, copper busbars, neutral and earth bars, correctly sized internal
B37: 5.5.1 | C37: Supply and install a Distribution Board | D37: No. | E37: 1 | F37: 0 | G37: =F37*E37 -> 0
C39: TOTAL FOR BILL - CARRIED FORWARD | G39: =SUM(G4:G38) -> 0
B40: TOTAL FOR BILL - BROUGHT FORWARD | G40: =G39 -> 0
B42: 5.5 | C42: Low Voltage PVC Cables
C43: Supply and installation of PVC SWA PVC cable and Bare Copper Earth Wire in sleeves and in trenches
B45: 5.5.1 | C45: 4mm 4 core PVC SWA Cable | D45: m | G45: rate only
B47: 5.5.2 | C47: 2.5mm BCEW | D47: m | G47: rate only
C49: Terminations:
B51: 5.5.5 | C51: 10mm 2 core cable | D51: No | E51: 4 | F51: 0 | G51: =E51*F51 -> 0
B53: 5.5.5 | C53: 6mm BCEW | D53: No | E53: 1 | F53: 0 | G53: =E53*F53 -> 0
B55: 5.6 | C55: Conduit Work
C57: Supply, delivery and installation of SABS approved PVC Conduits completed with all required conduit accessories.
C59: Built or Chase into brick or concrete work:
B61: 5.6.1 | C61: 20mm PVC conduit | D61: m | G61: rate only
B63: 5.6.2 | C63: 25mm PVC conduit | D63: m | E63: 450 | F63: 0 | G63: =F63*E63 -> 0
C65: In Ceiling space and Timber work or along Purlins
B67: 5.6.5 | C67: 20mm PVC conduit | D67: m | E67: 500 | F67: 0 | G67: =F67*E67 -> 0
B69: 5.6.5 | C69: 25mm PVC conduit | D69: m | G69: rate only
B71: 5.7 | C71: Supply and installation of SABS approved conduit boxes, installed in the run of the conduit installation, cast into concrete and built into brickwork or flush inside false ceiling spaces, complete with all required conduit termination accessories.
B73: 5.7.1 | C73: 20mm diameter 4 way type(round box) | D73: No | E73: 45 | F73: 0 | G73: =F73*E73 -> 0
B75: 5.7 | C75: Wall Boxes
C77: Supply and installation of SABS approved galvanised pressed steel wall boxes for building flush into brickwork or cast into concrete work.
C79: Flush mounted type:
B81: 5.7.1 | C81: 100 x 50 x 50mm | D81: No | E81: 6 | F81: 0 | G81: =F81*E81 -> 0
B83: 5.7.2 | C83: 100 x 100 x 50mm | D83: No | E83: 12 | F83: 0 | G83: =F83*E83 -> 0
C85: TOTAL FOR BILL - CARRIED FORWARD | G85: =SUM(G40:G84) -> 0
B86: TOTAL FOR BILL - BROUGHT FORWARD | G86: =G85 -> 0
B88: 5.8 | C88: PVC Wiring in conduits:
B90: 5.8.1 | C90: 2.5mm² house wire for lights circuits | D90: m | E90: 1850 | F90: 0 | G90: =F90*E90 -> 0
B92: 5.8.2 | C92: Flat twin 4mm² X2+Earth for plug sockets and airconditioning circuits | D92: m | E92: 850 | F92: 0 | G92: =F92*E92 -> 0
C94: Stranded Bare Copper Earth Wire
C96: Supply and installation of stranded bare copper earth wire along with PVC wiring in conduits. Tendered rates shall make provision for wastage.
B98: 5.8.5 | C98: 2.5mm² | D98: m | E98: =E90 -> 1850 | F98: 0 | G98: =F98*E98 -> 0
B100: 5.8.5 | C100: 4mm² | D100: m | G100: rate only
B102: 5.9 | C102: Light Switches
C104: Supply and installation of SABS approved type 16A flush and surface type light switches. Final paint finishes shall be confirmed at a later stage, allowance shall however be made as specified in the general specification.
B106: 5.9.1 | C106: 1 Lever 1 way | D106: No | E106: 6 | F106: 0 | G106: =F106*E106 -> 0
B108: 5.9.2 | C108: 1 Lever 2 way | D108: No | E108: 2 | F108: 0 | G108: =E108*F108 -> 0
B110: 5.9.5 | C110: 3 Lever 2 way | D110: No | G110: rate only
B112: 5.9.5 | C112: 3 Lever 1 way | D112: No | G112: rate only
B114: 5.9.5 | C114: Photo cell | D114: No | E114: 1 | F114: 0 | G114: =E114*F114 -> 0
B116: 5.9.6 | C116: Motion Sensor | D116: No | E116: 2 | F116: 0 | G116: =E116*F116 -> 0
B118: 5.1 | C118: Socket Outlets
C120: Supply and installation of SABS approved switched and unswitched type flush and surface mounted type 16A switched socket outlets suitable for mounting in flush steel wall boxes or in steel pedestal units or on surface.
C122: The final colour of the paint finish shall be confirmed at a later stage, allowance shall be made as specified in the specification.
C124: All flush type boxes and special pedestals measured elsewhere.
C126: Flush switched sockets type:
B128: 5.10.1 | C128: 16A single socket outlets - ZA plug | D128: No | E128: 7 | F128: 0 | G128: =F128*E128 -> 0
B130: 5.10.2 | C130: Type F Socket outlet | D130: No | G130: rate only
B132: 5.10.5 | C132: Type D Socket outlet | D132: No | G132: Rate only
B134: 5.10.5 | C134: Power Pole | D134: No | G134: rate only
C136: TOTAL FOR BILL - CARRIED FORWARD | G136: =SUM(G86:G135) -> 0
B137: TOTAL FOR BILL - BROUGHT FORWARD | G137: =G136 -> 0
B139: 5.11 | C139: Light Fittings
C141: Supply, delivery to site, storage and installation of the below specified light fittings complete with lamps, fixing material, mounting and tubes. Allowance must be made in the rates for all the required fixing materials and accessories.
C143: Fittings to be equal and similar approved to the below quoted manufacture.
B145: 5.11.1 | C145: Type F1: 2x14W 600mm LED decorative fluorescent light | D145: No | G145: rate only
P146: =60*12 -> 720
B147: 5.11.2 | C147: Type W1: 2x14W 600mm LED decorative vapour fluorescent light | D147: No | G147: rate only
B149: 5.11.5 | C149: 4ft or 2ft T8 Open Channel Luminaire With 2x18 LED Tube | D149: No | E149: 8 | F149: 0 | G149: =E149*F149 -> 0
B151: 5.11.5 | C151: 15W LED Round Bulkhead 4000K | D151: No | E151: 19 | F151: 0 | G151: =F151*E151 -> 0
B153: 5.11.5 | C153: Suspended cosmos 100W IP65 1-10V dimmable high bay | D153: No | E153: 12 | F153: 0 | G153: =F153*E153 -> 0
B155: 5.12 | C155: Electrical Tests
C157: Making provision for the required inspection, tests and the commissioning of the complete installation and the issuing of the required certificate.
B159: 5.12.1 | C159: Building installation | D159: Sum | E159: 1 | F159: R12,000.00 | G159: =F159*E159 -> R12,000.00
B161: 5.15 | C161: Others
B163: 5.15.1 | C163: 300 x 300mm - Telephone & Data DB | D163: No | G163: Rate only
B165: 5.15.2 | C165: 100 x 100 x 50mm - Draw box for Communication complete with blank cover | D165: No | G165: Rate only
B167: 5.15.5 | C167: 2 compartment power skirting complete with socket outlets and blabks for telephone and data points. | D167: m | G167: Rate only
B169: 5.15.5 | C169: DATA and Telephone points on must include draw box, blank cover plate, etc, | D169: No | G169: Rate only
B171: 5.15.5 | C171: Provide the Sum of R 35,500.00 for earthing and lightning protection | D171: Sum | E171: 1 | F171: R35,500.00 | G171: =E171*F171 -> R35,500.00
B173: 5.15.6 | C173: 20A 2pole Isolator, in suitable York Box, for HVAC | D173: No | E173: 6 | F173: 0 | G173: =E173*F173 -> 0
B175: 5.15.7 | C175: 40A Isolator points with complete and suitable fitting, for stove | D175: No | E175: 2 | F175: 0 | G175: =E175*F175 -> 0
C177: TOTAL FOR BILL PER BLOCK (3X FLOORS)- CARRIED FORWARD TO SUMMARY | G177: 0

Sheet Existing 4 CLR+Abl
B2: ITEM | C2: DESCRIPTION | D2: UNIT | E2: QUANTITY | F2: RATE | G2: AMOUNT
B4: 6 | C4: Exisiting 4 CLR
B6: 6.1 | C6: P&G's @ 10 % of items 2-15
B8: 7.1 | C8: General trenching work for sleeves along the routes as pegged out on site after co-ordination with other services
B10: 8.1 | C10: Allowance must be made for the sifting of soil when required, removal and carting away of all stones and rocks including dumping off site. Backfilling and compaction shall be carried out as specified for overall siteworks.
B12: 9.1 | C12: Trenching through floor for sleeves | D12: m³ | G12: rate only
B14: 10.1 | C14: Excavation and backfilling in soft soil
D15: m³ | G15: rate only
B16: 11.1 | C16: Cable and Data Sleeves
B18: 12.1 | C18: Supply and installation of PVC Sleeves through floor construction to power distribution board and communication board complete with standard radius sleeve bends
B20: 13.1 | C20: 50 mm Diameter for Power Cables | D20: m | E20: 60 | F20: 0 | G20: =F20*E20 -> 0
C21: 110mm Diameter for power cable | D21: m | G21: rate only
C23: Radius bends:
B25: 6.2.6 | C25: 75mm Diameter | D25: No | G25: rate only
B27: 6.2.6 | C27: 110mm Diameter | D27: No | G27: rate only
B29: 6.6 | C29: Draw Wires
B31: 6.6.1 | C31: Supply and install a 0,6mm diameter galvanised draw wire in sleeves and conduit for data installation | D31: m | E31: =E63+E67 -> 1150 | F31: 0 | G31: =F31*E31 -> 0
B33: 6.6 | C33: Distribution Boards
C35: Supply, delivery, storage and submission of workshop drawings for the Flush mounted architrave steel type power distribution boards complete with flush trays,doors,switch gear mounting trays, copper busbars, neutral and earth bars, correctly sized internal
B37: 6.6.1 | C37: Supply and install a Distribution Board | D37: No. | E37: 1 | F37: 0 | G37: =F37*E37 -> 0
C39: TOTAL FOR BILL - CARRIED FORWARD | G39: =SUM(G4:G38) -> 0
B40: TOTAL FOR BILL - BROUGHT FORWARD | G40: =G39 -> 0
B42: 6.6 | C42: Low Voltage PVC Cables
C43: Supply and installation of PVC SWA PVC cable and Bare Copper Earth Wire in sleeves and in trenches
B45: 6.6.1 | C45: 4mm 4 core PVC SWA Cable | D45: m | G45: rate only
B47: 6.6.2 | C47: 2.5mm BCEW | D47: m | G47: rate only
C49: Terminations:
B51: 6.6.6 | C51: 10mm 2 core cable | D51: No | E51: 2 | F51: 0 | G51: =E51*F51 -> 0
B53: 6.6.6 | C53: 6mm BCEW | D53: No | E53: 1 | F53: 0 | G53: =E53*F53 -> 0
B55: 6.6 | C55: Conduit Work
C57: Supply, delivery and installation of SABS approved PVC Conduits completed with all required conduit accessories.
C59: Built or Chase into brick or concrete work:
B61: 6.6.1 | C61: 20mm PVC conduit | D61: m | G61: rate only
B63: 6.6.2 | C63: 25mm PVC conduit | D63: m | E63: 400 | F63: 0 | G63: =F63*E63 -> 0
C65: In Ceiling space and Timber work or along Purlins
B67: 6.6.6 | C67: 20mm PVC conduit | D67: m | E67: 750 | F67: 0 | G67: =F67*E67 -> 0
B69: 6.6.6 | C69: 25mm PVC conduit | D69: m | G69: rate only
B71: 6.7 | C71: Supply and installation of SABS approved conduit boxes, installed in the run of the conduit installation, cast into concrete and built into brickwork or flush inside false ceiling spaces, complete with all required conduit termination accessories.
B73: 6.7.1 | C73: 20mm diameter 4 way type(round box) | D73: No | E73: 45 | F73: 0 | G73: =F73*E73 -> 0
B75: 6.7 | C75: Wall Boxes
C77: Supply and installation of SABS approved galvanised pressed steel wall boxes for building flush into brickwork or cast into concrete work.
C79: Flush mounted type:
B81: 6.7.1 | C81: 100 x 50 x 50mm | D81: No | E81: 4 | F81: 0 | G81: =F81*E81 -> 0
B83: 6.7.2 | C83: 100 x 100 x 50mm | D83: No | E83: 12 | F83: 0 | G83: =F83*E83 -> 0
C85: TOTAL FOR BILL - CARRIED FORWARD | G85: =SUM(G40:G84) -> 0
B86: TOTAL FOR BILL - BROUGHT FORWARD | G86: =G85 -> 0
B88: 6.8 | C88: PVC Wiring in conduits:
B90: 6.8.1 | C90: 1.5mm² house wire for lights circuits | D90: m | E90: =150*3 -> 450 | F90: 0 | G90: =F90*E90 -> 0 | J90: =970/100 -> R9.70
B92: 6.8.2 | C92: 4mm² house wire for lights socket outlets and isolators | D92: m | E92: 550 | F92: 0 | G92: =F92*E92 -> 0
C94: Stranded Bare Copper Earth Wire
C96: Supply and installation of stranded bare copper earth wire along with PVC wiring in conduits. Tendered rates shall make provision for wastage.
B98: 6.8.6 | C98: 2.5mm² | D98: m | E98: =E90 -> 450 | F98: 0 | G98: =F98*E98 -> 0
B100: 6.8.6 | C100: 4mm² | D100: m | G100: rate only
B102: 6.9 | C102: Light Switches
C104: Supply and installation of SABS approved type 16A flush and surface type light switches. Final paint finishes shall be confirmed at a later stage, allowance shall however be made as specified in the general specification.
B106: 6.9.1 | C106: 1 Lever 1 way | D106: No | E106: 4 | F106: 0 | G106: =F106*E106 -> 0
B108: 6.9.2 | C108: 1 Lever 2 way | D108: No | G108: rate only
B110: 6.9.6 | C110: 3 Lever 2 way | D110: No | G110: rate only
B112: 6.9.6 | C112: 3 Lever 1 way | D112: No | G112: rate only
B114: 6.9.6 | C114: Photo cell | D114: No | E114: 1 | F114: 0 | G114: =E114*F114 -> 0
B116: 6.1 | C116: Socket Outlets
C118: Supply and installation of SABS approved switched and unswitched type flush and surface mounted type 16A switched socket outlets suitable for mounting in flush steel wall boxes or in steel pedestal units or on surface.
C120: The final colour of the paint finish shall be confirmed at a later stage, allowance shall be made as specified in the specification.
C122: All flush type boxes and special pedestals measured elsewhere.
C124: Flush switched sockets type:
B126: 6.10.1 | C126: 16A single socket outlets - ZA plug | D126: No | E126: 8 | F126: 0 | G126: =F126*E126 -> 0
B128: 6.10.2 | C128: 16A double socket outlets - ZA plug | D128: No | G128: Rate only
B130: 6.10.6 | C130: Type D Socket outlet | D130: No | E130: 4 | F130: 0 | G130: =E130*F130 -> 0
B132: 6.10.6 | C132: Power Pole | D132: No | G132: rate only
C134: TOTAL FOR BILL - CARRIED FORWARD | G134: =SUM(G86:G133) -> 0
B135: TOTAL FOR BILL - BROUGHT FORWARD | G135: =G134 -> 0
B137: 6.11 | C137: Light Fittings
C139: Supply, delivery to site, storage and installation of the below specified light fittings complete with lamps, fixing material, mounting and tubes. Allowance must be made in the rates for all the required fixing materials and accessories.
C141: Fittings to be equal and similar approved to the below quoted manufacture.
B143: 6.11.1 | C143: Type F1: 2x14W 600mm LED decorative fluorescent light | D143: No | G143: rate only
P144: =60*12 -> 720
B145: 6.11.2 | C145: Type W1: 2x14W 600mm LED decorative vapour fluorescent light | D145: No | G145: rate only
B147: 6.11.6 | C147: Opal E-Battien 4FT 1140mm 45W - 4000K - IP20 | D147: No | E147: 15 | F147: 0 | G147: =E147*F147 -> 0
B149: 6.11.6 | C149: 15W LED Round Bulkhead 4000K | D149: No | E149: 8 | F149: 0 | G149: =F149*E149 -> 0
B151: 6.11.6 | C151: Suspended cosmos 100W IP65 1-10V dimmable high bay | D151: No | G151: rate only
B153: 6.12 | C153: Electrical Tests
C155: Making provision for the required inspection, tests and the commissioning of the complete installation and the issuing of the required certificate.
B157: 6.12.1 | C157: Building installation | D157: Sum | E157: 1 | F157: R6,000.00 | G157: =F157*E157 -> R6,000.00
B159: 6.16 | C159: Others
B161: 6.16.1 | C161: 300 x 300mm - Telephone & Data DB | D161: No | G161: Rate only
B163: 6.16.2 | C163: 100 x 100 x 50mm - Draw box for Communication complete with blank cover | D163: No | G163: Rate only
B165: 6.16.6 | C165: 2 compartment power skirting complete with socket outlets and blabks for telephone and data points. | D165: m | G165: Rate only
B167: 6.16.6 | C167: DATA and Telephone points on must include draw box, blank cover plate, etc, | D167: No | G167: Rate only
B169: 6.16.6 | C169: Provide the Sum of R 38,500.00 for earthing and lightning protection | D169: Sum | E169: 1 | F169: R38,500.00 | G169: =E169*F169 -> R38,500.00
B171: 6.16.6 | C171: Provide the sum of R 25 000,00 for the removal of electrical installations in the existing classrooms | D171: No | E171: 1 | F171: 0 | G171: =E171*F171 -> 0
B173: 6.16.7 | C173: 40A Isolator points with complete and suitable fitting, for stove | D173: No | E173: 2 | F173: 0 | G173: =E173*F173 -> 0
C175: TOTAL FOR BILL PER BLOCK (3X FLOORS)- CARRIED FORWARD TO SUMMARY | G175: 0

Sheet Science Lab + Library
B2: ITEM | C2: DESCRIPTION | D2: UNIT | E2: QUANTITY | F2: RATE | G2: AMOUNT
B4: 7 | C4: Science Lab + Library
B6: 7.1 | C6: P&G's @ 10 % of items 2-15
B8: 8.1 | C8: General trenching work for sleeves along the routes as pegged out on site after co-ordination with other services
B10: 9.1 | C10: Allowance must be made for the sifting of soil when required, removal and carting away of all stones and rocks including dumping off site. Backfilling and compaction shall be carried out as specified for overall siteworks.
B12: 10.1 | C12: Trenching through floor for sleeves | D12: m³ | G12: rate only
B14: 11.1 | C14: Excavation and backfilling in soft soil
D15: m³ | G15: rate only
B16: 12.1 | C16: Cable and Data Sleeves
B18: 13.1 | C18: Supply and installation of PVC Sleeves through floor construction to power distribution board and communication board complete with standard radius sleeve bends
B20: 14.1 | C20: 50 mm Diameter for Power Cables | D20: m | E20: 60 | F20: 0 | G20: =F20*E20 -> 0
C21: 110mm Diameter for power cable | D21: m | G21: rate only
C23: Radius bends:
B25: 7.2.7 | C25: 75mm Diameter | D25: No | G25: rate only
B27: 7.2.7 | C27: 110mm Diameter | D27: No | G27: rate only
B29: 7.7 | C29: Draw Wires
B31: 7.7.1 | C31: Supply and install a 0,6mm diameter galvanised draw wire in sleeves and conduit for data installation | D31: m | E31: =E63+E67 -> 1250 | F31: 0 | G31: =F31*E31 -> 0
B33: 7.7 | C33: Distribution Boards
C35: Supply, delivery, storage and submission of workshop drawings for the Flush mounted architrave steel type power distribution boards complete with flush trays,doors,switch gear mounting trays, copper busbars, neutral and earth bars, correctly sized internal
B37: 7.7.1 | C37: Supply and install a Distribution Board | D37: No. | E37: 1 | F37: 0 | G37: =F37*E37 -> 0
C39: TOTAL FOR BILL - CARRIED FORWARD | G39: =SUM(G4:G38) -> 0
B40: TOTAL FOR BILL - BROUGHT FORWARD | G40: =G39 -> 0
B42: 7.7 | C42: Low Voltage PVC Cables
C43: Supply and installation of PVC SWA PVC cable and Bare Copper Earth Wire in sleeves and in trenches
B45: 7.7.1 | C45: 4mm 4 core PVC SWA Cable | D45: m | G45: rate only
B47: 7.7.2 | C47: 2.5mm BCEW | D47: m | G47: rate only
C49: Terminations:
B51: 7.7.7 | C51: 10mm 2 core cable | D51: No | E51: 2 | F51: 0 | G51: =E51*F51 -> 0
B53: 7.7.7 | C53: 6mm BCEW | D53: No | E53: 1 | F53: 0 | G53: =E53*F53 -> 0
B55: 7.7 | C55: Conduit Work
C57: Supply, delivery and installation of SABS approved PVC Conduits completed with all required conduit accessories.
C59: Built or Chase into brick or concrete work:
B61: 7.7.1 | C61: 20mm PVC conduit | D61: m | G61: rate only
B63: 7.7.2 | C63: 25mm PVC conduit | D63: m | E63: 600 | F63: 0 | G63: =F63*E63 -> 0
C65: In Ceiling space and Timber work or along Purlins
B67: 7.7.7 | C67: 20mm PVC conduit | D67: m | E67: 650 | F67: 0 | G67: =F67*E67 -> 0
B69: 7.7.7 | C69: 25mm PVC conduit | D69: m | G69: rate only
B71: 7.7 | C71: Supply and installation of SABS approved conduit boxes, installed in the run of the conduit installation, cast into concrete and built into brickwork or flush inside false ceiling spaces, complete with all required conduit termination accessories.
B73: 7.7.1 | C73: 20mm diameter 4 way type(round box) | D73: No | E73: 45 | F73: 0 | G73: =F73*E73 -> 0
B75: 7.7 | C75: Wall Boxes
C77: Supply and installation of SABS approved galvanised pressed steel wall boxes for building flush into brickwork or cast into concrete work.
C79: Flush mounted type:
B81: 7.7.1 | C81: 100 x 50 x 50mm | D81: No | E81: 4 | F81: 0 | G81: =F81*E81 -> 0
B83: 7.7.2 | C83: 100 x 100 x 50mm | D83: No | E83: 12 | F83: 0 | G83: =F83*E83 -> 0
C85: TOTAL FOR BILL - CARRIED FORWARD | G85: =SUM(G40:G84) -> 0
B86: TOTAL FOR BILL - BROUGHT FORWARD | G86: =G85 -> 0
B88: 7.8 | C88: PVC Wiring in conduits:
B90: 7.8.1 | C90: 1.5mm² house wire for lights circuits | D90: m | E90: 550 | F90: 0 | G90: =F90*E90 -> 0 | J90: =970/100 -> R9.70
B92: 7.8.2 | C92: 4mm² house wire for lights socket outlets and isolators | D92: m | E92: 650 | F92: 0 | G92: =F92*E92 -> 0
C94: Stranded Bare Copper Earth Wire
C96: Supply and installation of stranded bare copper earth wire along with PVC wiring in conduits. Tendered rates shall make provision for wastage.
B98: 7.8.7 | C98: 2.5mm² | D98: m | E98: =E90 -> 550 | F98: 0 | G98: =F98*E98 -> 0
B100: 7.8.7 | C100: 4mm² | D100: m | G100: rate only
B102: 7.9 | C102: Light Switches
C104: Supply and installation of SABS approved type 16A flush and surface type light switches. Final paint finishes shall be confirmed at a later stage, allowance shall however be made as specified in the general specification.
B106: 7.9.1 | C106: 1 Lever 1 way | D106: No | E106: 4 | F106: 0 | G106: =F106*E106 -> 0
B108: 7.9.2 | C108: 1 Lever 2 way | D108: No | G108: rate only
B110: 7.9.7 | C110: 3 Lever 2 way | D110: No | G110: rate only
B112: 7.9.7 | C112: 3 Lever 1 way | D112: No | G112: rate only
B114: 7.9.7 | C114: Photo cell | D114: No | E114: 1 | F114: 0 | G114: =E114*F114 -> 0
B116: 7.1 | C116: Socket Outlets
C118: Supply and installation of SABS approved switched and unswitched type flush and surface mounted type 16A switched socket outlets suitable for mounting in flush steel wall boxes or in steel pedestal units or on surface.
C120: The final colour of the paint finish shall be confirmed at a later stage, allowance shall be made as specified in the specification.
C122: All flush type boxes and special pedestals measured elsewhere.
C124: Flush switched sockets type:
B126: 7.10.1 | C126: 16A single socket outlets - ZA plug | D126: No | E126: 8 | F126: 0 | G126: =F126*E126 -> 0
B128: 7.10.2 | C128: 16A double socket outlets - ZA plug | D128: No | G128: Rate only
B130: 7.10.7 | C130: Type F Socket outlet | D130: No | E130: 1 | F130: 0 | G130: =E130*F130 -> 0
B132: 7.10.7 | C132: Power Pole | D132: No | G132: rate only
C134: TOTAL FOR BILL - CARRIED FORWARD | G134: =SUM(G86:G133) -> 0
B135: TOTAL FOR BILL - BROUGHT FORWARD | G135: =G134 -> 0
B137: 7.11 | C137: Light Fittings
C139: Supply, delivery to site, storage and installation of the below specified light fittings complete with lamps, fixing material, mounting and tubes. Allowance must be made in the rates for all the required fixing materials and accessories.
C141: Fittings to be equal and similar approved to the below quoted manufacture.
B143: 7.11.1 | C143: Type F1: 2x14W 600mm LED decorative fluorescent light | D143: No | G143: rate only
P144: =60*12 -> 720
B145: 7.11.2 | C145: Type W1: 2x14W 600mm LED decorative vapour fluorescent light | D145: No | G145: rate only
B147: 7.11.7 | C147: Opal E-Battien 4FT 1140mm 45W - 4000K - IP20 | D147: No | E147: 15 | F147: 0 | G147: =E147*F147 -> 0
B149: 7.11.7 | C149: 15W LED Round Bulkhead 4000K | D149: No | E149: 8 | F149: 0 | G149: =F149*E149 -> 0
B151: 7.11.7 | C151: Suspended cosmos 100W IP65 1-10V dimmable high bay | D151: No | G151: rate only
B153: 7.12 | C153: Electrical Tests
C155: Making provision for the required inspection, tests and the commissioning of the complete installation and the issuing of the required certificate.
B157: 7.12.1 | C157: Building installation | D157: Sum | E157: 1 | F157: R6,000.00 | G157: =F157*E157 -> R6,000.00
B159: 7.17 | C159: Others
B161: 7.17.1 | C161: 300 x 300mm - Telephone & Data DB | D161: No | G161: Rate only
B163: 7.17.2 | C163: 100 x 100 x 50mm - Draw box for Communication complete with blank cover | D163: No | G163: Rate only
B165: 7.17.7 | C165: 2 compartment power skirting complete with socket outlets and blabks for telephone and data points. | D165: m | G165: Rate only
B167: 7.17.7 | C167: Provide the sum of R 28 500,00 for the removal of electrical installations in the existing classrooms | D167: Sum | E167: 1 | F167: R28,500.00 | G167: =E167*F167 -> R28,500.00
B169: 7.17.8 | C169: 40A Isolator points with complete and suitable fitting, for stove | D169: No | E169: 6 | F169: 0 | G169: =E169*F169 -> 0
C171: TOTAL FOR BILL PER BLOCK (3X FLOORS)- CARRIED FORWARD TO SUMMARY | G171: 0

Sheet New 4 CLR+Abl
B2: ITEM | C2: DESCRIPTION | D2: UNIT | E2: QUANTITY | F2: RATE | G2: AMOUNT
B4: 9 | C4: Exisiting 4 CLR
B6: 9.1 | C6: P&G's @ 10 % of items 2-15
B8: 10.1 | C8: General trenching work for sleeves along the routes as pegged out on site after co-ordination with other services
B10: 11.1 | C10: Allowance must be made for the sifting of soil when required, removal and carting away of all stones and rocks including dumping off site. Backfilling and compaction shall be carried out as specified for overall siteworks.
B12: 12.1 | C12: Trenching through floor for sleeves | D12: m³ | G12: rate only
B14: 13.1 | C14: Excavation and backfilling in soft soil
D15: m³ | G15: rate only
B16: 14.1 | C16: Cable and Data Sleeves
B18: 15.1 | C18: Supply and installation of PVC Sleeves through floor construction to power distribution board and communication board complete with standard radius sleeve bends
B20: 16.1 | C20: 50 mm Diameter for Power Cables | D20: m | E20: 60 | F20: 0 | G20: =F20*E20 -> 0
C21: 110mm Diameter for power cable | D21: m | G21: rate only
C23: Radius bends:
B25: 9.2.9 | C25: 75mm Diameter | D25: No | G25: rate only
B27: 9.2.9 | C27: 110mm Diameter | D27: No | G27: rate only
B29: 9.9 | C29: Draw Wires
B31: 9.9.1 | C31: Supply and install a 0,6mm diameter galvanised draw wire in sleeves and conduit for data installation | D31: m | E31: =E63+E67 -> 1150 | F31: 0 | G31: =F31*E31 -> 0
B33: 9.9 | C33: Distribution Boards
C35: Supply, delivery, storage and submission of workshop drawings for the Flush mounted architrave steel type power distribution boards complete with flush trays,doors,switch gear mounting trays, copper busbars, neutral and earth bars, correctly sized internal
B37: 9.9.1 | C37: Supply and install a Distribution Board | D37: No. | E37: 1 | F37: 0 | G37: =F37*E37 -> 0
C39: TOTAL FOR BILL - CARRIED FORWARD | G39: =SUM(G4:G38) -> 0
B40: TOTAL FOR BILL - BROUGHT FORWARD | G40: =G39 -> 0
B42: 9.9 | C42: Low Voltage PVC Cables
C43: Supply and installation of PVC SWA PVC cable and Bare Copper Earth Wire in sleeves and in trenches
B45: 9.9.1 | C45: 4mm 4 core PVC SWA Cable | D45: m | G45: rate only
B47: 9.9.2 | C47: 2.5mm BCEW | D47: m | G47: rate only
C49: Terminations:
B51: 9.9.9 | C51: 10mm 2 core cable | D51: No | E51: 2 | F51: 0 | G51: =E51*F51 -> 0
B53: 9.9.9 | C53: 6mm BCEW | D53: No | E53: 1 | F53: 0 | G53: =E53*F53 -> 0
B55: 9.9 | C55: Conduit Work
C57: Supply, delivery and installation of SABS approved PVC Conduits completed with all required conduit accessories.
C59: Built or Chase into brick or concrete work:
B61: 9.9.1 | C61: 20mm PVC conduit | D61: m | G61: rate only
B63: 9.9.2 | C63: 25mm PVC conduit | D63: m | E63: 400 | F63: 0 | G63: =F63*E63 -> 0
C65: In Ceiling space and Timber work or along Purlins
B67: 9.9.9 | C67: 20mm PVC conduit | D67: m | E67: 750 | F67: 0 | G67: =F67*E67 -> 0
B69: 9.9.9 | C69: 25mm PVC conduit | D69: m | G69: rate only
B71: 9.7 | C71: Supply and installation of SABS approved conduit boxes, installed in the run of the conduit installation, cast into concrete and built into brickwork or flush inside false ceiling spaces, complete with all required conduit termination accessories.
B73: 9.7.1 | C73: 20mm diameter 4 way type(round box) | D73: No | E73: 45 | F73: 0 | G73: =F73*E73 -> 0
B75: 9.7 | C75: Wall Boxes
C77: Supply and installation of SABS approved galvanised pressed steel wall boxes for building flush into brickwork or cast into concrete work.
C79: Flush mounted type:
B81: 9.7.1 | C81: 100 x 50 x 50mm | D81: No | E81: 4 | F81: 0 | G81: =F81*E81 -> 0
B83: 9.7.2 | C83: 100 x 100 x 50mm | D83: No | E83: 12 | F83: 0 | G83: =F83*E83 -> 0
C85: TOTAL FOR BILL - CARRIED FORWARD | G85: =SUM(G40:G84) -> 0
B86: TOTAL FOR BILL - BROUGHT FORWARD | G86: =G85 -> 0
B88: 9.8 | C88: PVC Wiring in conduits:
B90: 9.8.1 | C90: 1.5mm² house wire for lights circuits | D90: m | E90: =150*3 -> 450 | F90: 0 | G90: =F90*E90 -> 0 | J90: =970/100 -> R9.70
B92: 9.8.2 | C92: 4mm² house wire for lights socket outlets and isolators | D92: m | E92: 600 | F92: 0 | G92: =F92*E92 -> 0
C94: Stranded Bare Copper Earth Wire
C96: Supply and installation of stranded bare copper earth wire along with PVC wiring in conduits. Tendered rates shall make provision for wastage.
B98: 9.8.9 | C98: 2.5mm² | D98: m | E98: =E90 -> 450 | F98: 0 | G98: =F98*E98 -> 0
B100: 9.8.9 | C100: 4mm² | D100: m | G100: rate only
B102: 9.9 | C102: Light Switches
C104: Supply and installation of SABS approved type 16A flush and surface type light switches. Final paint finishes shall be confirmed at a later stage, allowance shall however be made as specified in the general specification.
B106: 9.9.1 | C106: 1 Lever 1 way | D106: No | E106: 4 | F106: 0 | G106: =F106*E106 -> 0
B108: 9.9.2 | C108: 1 Lever 2 way | D108: No | G108: rate only
B110: 9.9.9 | C110: 3 Lever 2 way | D110: No | G110: rate only
B112: 9.9.9 | C112: 3 Lever 1 way | D112: No | G112: rate only
B114: 9.9.9 | C114: Photo cell | D114: No | E114: 1 | F114: 0 | G114: =E114*F114 -> 0
B116: 9.1 | C116: Socket Outlets
C118: Supply and installation of SABS approved switched and unswitched type flush and surface mounted type 16A switched socket outlets suitable for mounting in flush steel wall boxes or in steel pedestal units or on surface.
C120: The final colour of the paint finish shall be confirmed at a later stage, allowance shall be made as specified in the specification.
C122: All flush type boxes and special pedestals measured elsewhere.
C124: Flush switched sockets type:
B126: 9.10.1 | C126: 16A single socket outlets - ZA plug | D126: No | E126: 8 | F126: 0 | G126: =F126*E126 -> 0
B128: 9.10.2 | C128: 16A double socket outlets - ZA plug | D128: No | G128: Rate only
B130: 9.10.9 | C130: Type D Socket outlet | D130: No | E130: 4 | F130: 0 | G130: =E130*F130 -> 0
B132: 9.10.9 | C132: Power Pole | D132: No | G132: rate only
C134: TOTAL FOR BILL - CARRIED FORWARD | G134: =SUM(G86:G133) -> 0
B135: TOTAL FOR BILL - BROUGHT FORWARD | G135: =G134 -> 0
B137: 9.11 | C137: Light Fittings
C139: Supply, delivery to site, storage and installation of the below specified light fittings complete with lamps, fixing material, mounting and tubes. Allowance must be made in the rates for all the required fixing materials and accessories.
C141: Fittings to be equal and similar approved to the below quoted manufacture.
B143: 9.11.1 | C143: Type F1: 2x14W 600mm LED decorative fluorescent light | D143: No | G143: rate only
P144: =60*12 -> 720
B145: 9.11.2 | C145: Type W1: 2x14W 600mm LED decorative vapour fluorescent light | D145: No | G145: rate only
B147: 9.11.9 | C147: Opal E-Battien 4FT 1140mm 45W - 4000K - IP20 | D147: No | E147: 15 | F147: 0 | G147: =E147*F147 -> 0
B149: 9.11.9 | C149: 15W LED Round Bulkhead 4000K | D149: No | E149: 8 | F149: 0 | G149: =F149*E149 -> 0
B151: 9.11.9 | C151: Suspended cosmos 100W IP65 1-10V dimmable high bay | D151: No | G151: rate only
B153: 9.12 | C153: Electrical Tests
C155: Making provision for the required inspection, tests and the commissioning of the complete installation and the issuing of the required certificate.
B157: 9.12.1 | C157: Building installation | D157: Sum | E157: 1 | F157: R6,000.00 | G157: =F157*E157 -> R6,000.00
B159: 9.19 | C159: Others
B161: 9.19.1 | C161: 300 x 300mm - Telephone & Data DB | D161: No | G161: Rate only
B163: 9.19.2 | C163: 100 x 100 x 50mm - Draw box for Communication complete with blank cover | D163: No | G163: Rate only
B165: 9.19.9 | C165: 2 compartment power skirting complete with socket outlets and blabks for telephone and data points. | D165: m | E165: =50 -> 50 | G165: Rate only
B167: 9.19.9 | C167: DATA and Telephone points on must include draw box, blank cover plate, etc, | D167: No | G167: Rate only
B169: 9.19.9 | C169: Provide the Sum of R 38,500.00 for earthing and lightning protection | D169: Sum | E169: 1 | F169: R38,500.00 | G169: =E169*F169 -> R38,500.00
B171: 9.19.10 | C171: 40A Isolator points with complete and suitable fitting, for stove | D171: No | E171: 2 | F171: 0 | G171: =E171*F171 -> 0
C173: TOTAL FOR BILL PER BLOCK (3X FLOORS)- CARRIED FORWARD TO SUMMARY | G173: 0

Sheet HOD+Multipurpose+Maths Lab
B2: ITEM | C2: DESCRIPTION | D2: UNIT | E2: QUANTITY | F2: RATE | G2: AMOUNT
B4: 10 | C4: Exisiting 4 CLR
B6: 10.1 | C6: P&G's @ 10 % of items 2-15
B8: 11.1 | C8: General trenching work for sleeves along the routes as pegged out on site after co-ordination with other services
B10: 12.1 | C10: Allowance must be made for the sifting of soil when required, removal and carting away of all stones and rocks including dumping off site. Backfilling and compaction shall be carried out as specified for overall siteworks.
B12: 13.1 | C12: Trenching through floor for sleeves | D12: m³ | G12: rate only
B14: 14.1 | C14: Excavation and backfilling in soft soil
D15: m³ | G15: rate only
B16: 15.1 | C16: Cable and Data Sleeves
B18: 16.1 | C18: Supply and installation of PVC Sleeves through floor construction to power distribution board and communication board complete with standard radius sleeve bends
B20: 17.1 | C20: 50 mm Diameter for Power Cables | D20: m | E20: 60 | F20: 0 | G20: =F20*E20 -> 0
C21: 110mm Diameter for power cable | D21: m | G21: rate only
C23: Radius bends:
B25: 10.2.10 | C25: 75mm Diameter | D25: No | G25: rate only
B27: 10.2.10 | C27: 110mm Diameter | D27: No | G27: rate only
B29: 10.1 | C29: Draw Wires
B31: 10.10.1 | C31: Supply and install a 0,6mm diameter galvanised draw wire in sleeves and conduit for data installation | D31: m | E31: =E63+E67 -> 750 | F31: 0 | G31: =F31*E31 -> 0
B33: 10.1 | C33: Distribution Boards
C35: Supply, delivery, storage and submission of workshop drawings for the Flush mounted architrave steel type power distribution boards complete with flush trays,doors,switch gear mounting trays, copper busbars, neutral and earth bars, correctly sized internal
B37: 10.10.1 | C37: Supply and install a Distribution Board | D37: No. | E37: 1 | F37: 0 | G37: =F37*E37 -> 0
C39: TOTAL FOR BILL - CARRIED FORWARD | G39: =SUM(G4:G38) -> 0
B40: TOTAL FOR BILL - BROUGHT FORWARD | G40: =G39 -> 0
B42: 10.1 | C42: Low Voltage PVC Cables
C43: Supply and installation of PVC SWA PVC cable and Bare Copper Earth Wire in sleeves and in trenches
B45: 10.10.1 | C45: 4mm 4 core PVC SWA Cable | D45: m | G45: rate only
B47: 10.10.2 | C47: 2.5mm BCEW | D47: m | G47: rate only
C49: Terminations:
B51: 10.10.10 | C51: 10mm 2 core cable | D51: No | E51: 2 | F51: 0 | G51: =E51*F51 -> 0
B53: 10.10.10 | C53: 6mm BCEW | D53: No | E53: 1 | F53: 0 | G53: =E53*F53 -> 0
B55: 10.1 | C55: Conduit Work
C57: Supply, delivery and installation of SABS approved PVC Conduits completed with all required conduit accessories.
C59: Built or Chase into brick or concrete work:
B61: 10.10.1 | C61: 20mm PVC conduit | D61: m | G61: rate only
B63: 10.10.2 | C63: 25mm PVC conduit | D63: m | E63: 350 | F63: 0 | G63: =F63*E63 -> 0
C65: In Ceiling space and Timber work or along Purlins
B67: 10.10.10 | C67: 20mm PVC conduit | D67: m | E67: 400 | F67: 0 | G67: =F67*E67 -> 0
B69: 10.10.10 | C69: 25mm PVC conduit | D69: m | G69: rate only
B71: 10.7 | C71: Supply and installation of SABS approved conduit boxes, installed in the run of the conduit installation, cast into concrete and built into brickwork or flush inside false ceiling spaces, complete with all required conduit termination accessories.
B73: 10.7.1 | C73: 20mm diameter 4 way type(round box) | D73: No | E73: 45 | F73: 0 | G73: =F73*E73 -> 0
B75: 10.7 | C75: Wall Boxes
C77: Supply and installation of SABS approved galvanised pressed steel wall boxes for building flush into brickwork or cast into concrete work.
C79: Flush mounted type:
B81: 10.7.1 | C81: 100 x 50 x 50mm | D81: No | E81: 4 | F81: 0 | G81: =F81*E81 -> 0
B83: 10.7.2 | C83: 100 x 100 x 50mm | D83: No | E83: 12 | F83: 0 | G83: =F83*E83 -> 0
C85: TOTAL FOR BILL - CARRIED FORWARD | G85: =SUM(G40:G84) -> 0
B86: TOTAL FOR BILL - BROUGHT FORWARD | G86: =G85 -> 0
B88: 10.8 | C88: PVC Wiring in conduits:
B90: 10.8.1 | C90: 1.5mm² house wire for lights circuits | D90: m | E90: 350 | F90: 0 | G90: =F90*E90 -> 0 | J90: =970/100 -> R9.70
B92: 10.8.2 | C92: 4mm² house wire for lights socket outlets and isolators | D92: m | E92: 400 | F92: 0 | G92: =F92*E92 -> 0
C94: Stranded Bare Copper Earth Wire
C96: Supply and installation of stranded bare copper earth wire along with PVC wiring in conduits. Tendered rates shall make provision for wastage.
B98: 10.8.10 | C98: 2.5mm² | D98: m | E98: =E90 -> 350 | F98: 0 | G98: =F98*E98 -> 0
B100: 10.8.10 | C100: 4mm² | D100: m | G100: rate only
B102: 10.1 | C102: Light Switches
C104: Supply and installation of SABS approved type 16A flush and surface type light switches. Final paint finishes shall be confirmed at a later stage, allowance shall however be made as specified in the general specification.
B106: 10.10.1 | C106: 1 Lever 1 way | D106: No | E106: 4 | F106: 0 | G106: =F106*E106 -> 0
B108: 10.10.2 | C108: 1 Lever 2 way | D108: No | G108: rate only
B110: 10.10.10 | C110: 3 Lever 2 way | D110: No | G110: rate only
B112: 10.10.10 | C112: 3 Lever 1 way | D112: No | G112: rate only
B114: 10.10.10 | C114: Photo cell | D114: No | E114: 1 | F114: 0 | G114: =E114*F114 -> 0
B116: 10.1 | C116: Socket Outlets
C118: Supply and installation of SABS approved switched and unswitched type flush and surface mounted type 16A switched socket outlets suitable for mounting in flush steel wall boxes or in steel pedestal units or on surface.
C120: The final colour of the paint finish shall be confirmed at a later stage, allowance shall be made as specified in the specification.
C122: All flush type boxes and special pedestals measured elsewhere.
C124: Flush switched sockets type:
B126: 10.10.1 | C126: 16A single socket outlets - ZA plug | D126: No | E126: 8 | F126: 0 | G126: =F126*E126 -> 0
B128: 10.10.2 | C128: 16A double socket outlets - ZA plug | D128: No | G128: Rate only
B130: 10.10.10 | C130: Type F Socket outlet | D130: No | E130: 1 | F130: 0 | G130: =E130*F130 -> 0
B132: 10.10.10 | C132: Power Pole | D132: No | G132: rate only
C134: TOTAL FOR BILL - CARRIED FORWARD | G134: =SUM(G86:G133) -> 0
B135: TOTAL FOR BILL - BROUGHT FORWARD | G135: =G134 -> 0
B137: 10.11 | C137: Light Fittings
C139: Supply, delivery to site, storage and installation of the below specified light fittings complete with lamps, fixing material, mounting and tubes. Allowance must be made in the rates for all the required fixing materials and accessories.
C141: Fittings to be equal and similar approved to the below quoted manufacture.
B143: 10.11.1 | C143: Type F1: 2x14W 600mm LED decorative fluorescent light | D143: No | G143: rate only
P144: =60*12 -> 720
B145: 10.11.2 | C145: Type W1: 2x14W 600mm LED decorative vapour fluorescent light | D145: No | G145: rate only
B147: 10.11.10 | C147: Opal E-Battien 4FT 1140mm 45W - 4000K - IP20 | D147: No | E147: 15 | F147: 0 | G147: =E147*F147 -> 0
B149: 10.11.10 | C149: 15W LED Round Bulkhead 4000K | D149: No | E149: 8 | F149: 0 | G149: =F149*E149 -> 0
B151: 10.11.10 | C151: Suspended cosmos 100W IP65 1-10V dimmable high bay | D151: No | G151: rate only
B153: 10.12 | C153: Electrical Tests
C155: Making provision for the required inspection, tests and the commissioning of the complete installation and the issuing of the required certificate.
B157: 10.12.1 | C157: Building installation | D157: Sum | E157: 1 | F157: R6,000.00 | G157: =F157*E157 -> R6,000.00
B159: 10.11 | C159: Others
B161: 10.110.1 | C161: 300 x 300mm - Telephone & Data DB | D161: No | G161: Rate only
B163: 10.110.2 | C163: 100 x 100 x 50mm - Draw box for Communication complete with blank cover | D163: No | G163: Rate only
B165: 10.110.10 | C165: 2 compartment power skirting complete with socket outlets and blabks for telephone and data points. | D165: m | E165: =50 -> 50 | G165: Rate only
B167: 10.110.10 | C167: 40A Isolator points with complete and suitable fitting, for stove | D167: No | E167: 2 | F167: 0 | G167: =E167*F167 -> 0
B169: 10.110.10 | C169: Provide the Sum of R 38,500.00 for earthing and lightning protection | D169: Sum | E169: 1 | F169: R38,500.00 | G169: =E169*F169 -> R38,500.00
C171: TOTAL FOR BILL PER BLOCK (3X FLOORS)- CARRIED FORWARD TO SUMMARY | G171: 0

Sheet Caretakers Room + Store
B2: ITEM | C2: DESCRIPTION | D2: UNIT | E2: QUANTITY | F2: RATE | G2: AMOUNT
B4: 12 | C4: CARETAKER + STORAGE
B6: 12.1 | C6: P&G's @ 10 % of items 2-15
B8: 13.1 | C8: General trenching work for sleeves along the routes as pegged out on site after co-ordination with other services
B10: 14.1 | C10: Allowance must be made for the sifting of soil when required, removal and carting away of all stones and rocks including dumping off site. Backfilling and compaction shall be carried out as specified for overall siteworks.
B12: 15.1 | C12: Trenching through floor for sleeves | D12: m³ | G12: rate only
B14: 16.1 | C14: Excavation and backfilling in soft soil
D15: m³ | G15: rate only
B16: 17.1 | C16: Cable and Data Sleeves
B18: 18.1 | C18: Supply and installation of PVC Sleeves through floor construction to power distribution board and communication board complete with standard radius sleeve bends
B20: 19.1 | C20: 50 mm Diameter for Power Cables | D20: m | E20: 60 | F20: 0 | G20: =F20*E20 -> 0
C21: 110mm Diameter for power cable | D21: m | G21: rate only
C23: Radius bends:
B25: 12.2.12 | C25: 75mm Diameter | D25: No | G25: rate only
B27: 12.2.12 | C27: 110mm Diameter | D27: No | G27: rate only
B29: 12.12 | C29: Draw Wires
B31: 12.12.1 | C31: Supply and install a 0,6mm diameter galvanised draw wire in sleeves and conduit for data installation | D31: m | E31: =E63+E67 -> 400 | F31: 0 | G31: =F31*E31 -> 0
B33: 12.12 | C33: Distribution Boards
C35: Supply, delivery, storage and submission of workshop drawings for the Flush mounted architrave steel type power distribution boards complete with flush trays,doors,switch gear mounting trays, copper busbars, neutral and earth bars, correctly sized internal
B37: 12.12.1 | C37: Supply and install a Distribution Board | D37: No. | E37: 1 | F37: 0 | G37: =F37*E37 -> 0
C39: TOTAL FOR BILL - CARRIED FORWARD | G39: =SUM(G4:G38) -> 0
B40: TOTAL FOR BILL - BROUGHT FORWARD | G40: =G39 -> 0
B42: 12.12 | C42: Low Voltage PVC Cables
C43: Supply and installation of PVC SWA PVC cable and Bare Copper Earth Wire in sleeves and in trenches
B45: 12.12.1 | C45: 4mm 4 core PVC SWA Cable | D45: m | G45: rate only
B47: 12.12.2 | C47: 2.5mm BCEW | D47: m | G47: rate only
C49: Terminations:
B51: 12.12.12 | C51: 10mm 2 core cable | D51: No | E51: 2 | F51: 0 | G51: =E51*F51 -> 0
B53: 12.12.12 | C53: 6mm BCEW | D53: No | E53: 1 | F53: 0 | G53: =E53*F53 -> 0
B55: 12.12 | C55: Conduit Work
C57: Supply, delivery and installation of SABS approved PVC Conduits completed with all required conduit accessories.
C59: Built or Chase into brick or concrete work:
B61: 12.12.1 | C61: 20mm PVC conduit | D61: m | G61: rate only
B63: 12.12.2 | C63: 25mm PVC conduit | D63: m | E63: 150 | F63: 0 | G63: =F63*E63 -> 0
C65: In Ceiling space and Timber work or along Purlins
B67: 12.12.12 | C67: 20mm PVC conduit | D67: m | E67: 250 | F67: 0 | G67: =F67*E67 -> 0
B69: 12.12.12 | C69: 25mm PVC conduit | D69: m | G69: rate only
B71: 12.7 | C71: Supply and installation of SABS approved conduit boxes, installed in the run of the conduit installation, cast into concrete and built into brickwork or flush inside false ceiling spaces, complete with all required conduit termination accessories.
B73: 12.7.1 | C73: 20mm diameter 4 way type(round box) | D73: No | E73: 45 | F73: 0 | G73: =F73*E73 -> 0
B75: 12.7 | C75: Wall Boxes
C77: Supply and installation of SABS approved galvanised pressed steel wall boxes for building flush into brickwork or cast into concrete work.
C79: Flush mounted type:
B81: 12.7.1 | C81: 100 x 50 x 50mm | D81: No | E81: 4 | F81: 0 | G81: =F81*E81 -> 0
B83: 12.7.2 | C83: 100 x 100 x 50mm | D83: No | E83: 12 | F83: 0 | G83: =F83*E83 -> 0
C85: TOTAL FOR BILL - CARRIED FORWARD | G85: =SUM(G40:G84) -> 0
B86: TOTAL FOR BILL - BROUGHT FORWARD | G86: =G85 -> 0
B88: 12.12 | C88: PVC Wiring in conduits:
B90: 12.12.1 | C90: 1.5mm² house wire for lights circuits | D90: m | E90: 220 | F90: 0 | G90: =F90*E90 -> 0 | J90: =970/100 -> R9.70
B92: 12.12.2 | C92: 4mm² house wire for lights socket outlets and isolators | D92: m | E92: 250 | F92: 0 | G92: =F92*E92 -> 0
C94: Stranded Bare Copper Earth Wire
C96: Supply and installation of stranded bare copper earth wire along with PVC wiring in conduits. Tendered rates shall make provision for wastage.
B98: 12.12.12 | C98: 2.5mm² | D98: m | E98: =E90 -> 220 | F98: 0 | G98: =F98*E98 -> 0
B100: 12.12.12 | C100: 4mm² | D100: m | G100: rate only
B102: 12.9 | C102: Light Switches
C104: Supply and installation of SABS approved type 16A flush and surface type light switches. Final paint finishes shall be confirmed at a later stage, allowance shall however be made as specified in the general specification.
B106: 12.9.1 | C106: 1 Lever 1 way | D106: No | E106: 4 | F106: 0 | G106: =F106*E106 -> 0
B108: 12.9.2 | C108: 1 Lever 2 way | D108: No | G108: rate only
B110: 12.9.12 | C110: 3 Lever 2 way | D110: No | G110: rate only
B112: 12.9.12 | C112: 3 Lever 1 way | D112: No | G112: rate only
B114: 12.9.12 | C114: Photo cell | D114: No | E114: 1 | F114: 0 | G114: =E114*F114 -> 0
B116: 12.1 | C116: Socket Outlets
C118: Supply and installation of SABS approved switched and unswitched type flush and surface mounted type 16A switched socket outlets suitable for mounting in flush steel wall boxes or in steel pedestal units or on surface.
C120: The final colour of the paint finish shall be confirmed at a later stage, allowance shall be made as specified in the specification.
C122: All flush type boxes and special pedestals measured elsewhere.
C124: Flush switched sockets type:
B126: 12.10.1 | C126: 16A single socket outlets - ZA plug | D126: No | E126: 8 | F126: 0 | G126: =F126*E126 -> 0
B128: 12.10.2 | C128: 16A double socket outlets - ZA plug | D128: No | G128: Rate only
B130: 12.10.12 | C130: Type F Socket outlet | D130: No | G130: rate only
B132: 12.10.12 | C132: Power Pole | D132: No | G132: rate only
C134: TOTAL FOR BILL - CARRIED FORWARD | G134: =SUM(G86:G133) -> 0
B135: TOTAL FOR BILL - BROUGHT FORWARD | G135: =G134 -> 0
B137: 12.11 | C137: Light Fittings
C139: Supply, delivery to site, storage and installation of the below specified light fittings complete with lamps, fixing material, mounting and tubes. Allowance must be made in the rates for all the required fixing materials and accessories.
C141: Fittings to be equal and similar approved to the below quoted manufacture.
B143: 12.11.1 | C143: Type F1: 2x14W 600mm LED decorative fluorescent light | D143: No | G143: rate only
P144: =60*12 -> 720
B145: 12.11.2 | C145: Type W1: 2x14W 600mm LED decorative vapour fluorescent light | D145: No | G145: rate only
B147: 12.11.12 | C147: Opal E-Battien 4FT 1140mm 45W - 4000K - IP20 | D147: No | E147: 15 | F147: 0 | G147: =E147*F147 -> 0
B149: 12.11.12 | C149: 15W LED Round Bulkhead 4000K | D149: No | E149: 8 | F149: 0 | G149: =F149*E149 -> 0
B151: 12.11.12 | C151: Suspended cosmos 100W IP65 1-10V dimmable high bay | D151: No | G151: rate only
B153: 12.12 | C153: Electrical Tests
C155: Making provision for the required inspection, tests and the commissioning of the complete installation and the issuing of the required certificate.
B157: 12.12.1 | C157: Building installation | D157: Sum | E157: 1 | F157: R4,000.00 | G157: =F157*E157 -> R4,000.00
B159: 12.112 | C159: Others
B161: 12.112.1 | C161: 300 x 300mm - Telephone & Data DB | D161: No | G161: Rate only
B163: 12.112.2 | C163: 100 x 100 x 50mm - Draw box for Communication complete with blank cover | D163: No | G163: Rate only
B165: 12.112.12 | C165: 2 compartment power skirting complete with socket outlets and blabks for telephone and data points. | D165: m | G165: Rate only
B167: 12.112.12 | C167: DATA and Telephone points on must include draw box, blank cover plate, etc, | D167: No | G167: Rate only
B169: 12.112.12 | C169: Provide the Sum of R 12,500.00 for earthing and lightning protection | D169: Sum | E169: 1 | F169: R12,500.00 | G169: =E169*F169 -> R12,500.00
B171: 12.112.7 | C171: 40A Isolator points with complete and suitable fitting, for stove | D171: No | G171: rate only
C173: TOTAL FOR BILL PER BLOCK (3X FLOORS)- CARRIED FORWARD TO SUMMARY | G173: 0

Sheet TuckShop
B2: ITEM | C2: DESCRIPTION | D2: UNIT | E2: QUANTITY | F2: RATE | G2: AMOUNT
B4: 13 | C4: TUCKSHOP
B6: 13.1 | C6: P&G's @ 10 % of items 2-15
B8: 14.1 | C8: General trenching work for sleeves along the routes as pegged out on site after co-ordination with other services
B10: 15.1 | C10: Allowance must be made for the sifting of soil when required, removal and carting away of all stones and rocks including dumping off site. Backfilling and compaction shall be carried out as specified for overall siteworks.
B12: 16.1 | C12: Trenching through floor for sleeves | D12: m³ | G12: rate only
B14: 17.1 | C14: Excavation and backfilling in soft soil
D15: m³ | G15: rate only
B16: 18.1 | C16: Cable and Data Sleeves
B18: 19.1 | C18: Supply and installation of PVC Sleeves through floor construction to power distribution board and communication board complete with standard radius sleeve bends
B20: 20.1 | C20: 50 mm Diameter for Power Cables | D20: m | E20: 60 | F20: 0 | G20: =F20*E20 -> 0
C21: 110mm Diameter for power cable | D21: m | G21: rate only
C23: Radius bends:
B25: 13.2.13 | C25: 75mm Diameter | D25: No | G25: rate only
B27: 13.2.13 | C27: 110mm Diameter | D27: No | G27: rate only
B29: 13.13 | C29: Draw Wires
B31: 13.13.1 | C31: Supply and install a 0,6mm diameter galvanised draw wire in sleeves and conduit for data installation | D31: m | E31: =E63+E67 -> 270 | F31: 0 | G31: =F31*E31 -> 0
B33: 13.13 | C33: Distribution Boards
C35: Supply, delivery, storage and submission of workshop drawings for the Flush mounted architrave steel type power distribution boards complete with flush trays,doors,switch gear mounting trays, copper busbars, neutral and earth bars, correctly sized internal
B37: 13.13.1 | C37: Supply and install a Distribution Board | D37: No. | E37: 1 | F37: 0 | G37: =F37*E37 -> 0
C39: TOTAL FOR BILL - CARRIED FORWARD | G39: =SUM(G4:G38) -> 0
B40: TOTAL FOR BILL - BROUGHT FORWARD | G40: =G39 -> 0
B42: 13.13 | C42: Low Voltage PVC Cables
C43: Supply and installation of PVC SWA PVC cable and Bare Copper Earth Wire in sleeves and in trenches
B45: 13.13.1 | C45: 4mm 4 core PVC SWA Cable | D45: m | G45: rate only
B47: 13.13.2 | C47: 2.5mm BCEW | D47: m | G47: rate only
C49: Terminations:
B51: 13.13.13 | C51: 10mm 2 core cable | D51: No | E51: 2 | F51: 0 | G51: =E51*F51 -> 0
B53: 13.13.13 | C53: 6mm BCEW | D53: No | E53: 1 | F53: 0 | G53: =E53*F53 -> 0
B55: 13.13 | C55: Conduit Work
C57: Supply, delivery and installation of SABS approved PVC Conduits completed with all required conduit accessories.
C59: Built or Chase into brick or concrete work:
B61: 13.13.1 | C61: 20mm PVC conduit | D61: m | G61: rate only
B63: 13.13.2 | C63: 25mm PVC conduit | D63: m | E63: 150 | F63: 0 | G63: =F63*E63 -> 0
C65: In Ceiling space and Timber work or along Purlins
B67: 13.13.13 | C67: 20mm PVC conduit | D67: m | E67: 120 | F67: 0 | G67: =F67*E67 -> 0
B69: 13.13.13 | C69: 25mm PVC conduit | D69: m | G69: rate only
B71: 13.7 | C71: Supply and installation of SABS approved conduit boxes, installed in the run of the conduit installation, cast into concrete and built into brickwork or flush inside false ceiling spaces, complete with all required conduit termination accessories.
B73: 13.7.1 | C73: 20mm diameter 4 way type(round box) | D73: No | E73: 45 | F73: 0 | G73: =F73*E73 -> 0
B75: 13.7 | C75: Wall Boxes
C77: Supply and installation of SABS approved galvanised pressed steel wall boxes for building flush into brickwork or cast into concrete work.
C79: Flush mounted type:
B81: 13.7.1 | C81: 100 x 50 x 50mm | D81: No | E81: 4 | F81: 0 | G81: =F81*E81 -> 0
B83: 13.7.2 | C83: 100 x 100 x 50mm | D83: No | E83: 12 | F83: 0 | G83: =F83*E83 -> 0
C85: TOTAL FOR BILL - CARRIED FORWARD | G85: =SUM(G40:G84) -> 0
B86: TOTAL FOR BILL - BROUGHT FORWARD | G86: =G85 -> 0
B88: 13.13 | C88: PVC Wiring in conduits:
B90: 13.13.1 | C90: 1.5mm² house wire for lights circuits | D90: m | E90: 250 | F90: 0 | G90: =F90*E90 -> 0 | J90: =970/100 -> R9.70
B92: 13.13.2 | C92: 4mm² house wire for lights socket outlets and isolators | D92: m | E92: 250 | F92: 0 | G92: =F92*E92 -> 0
C94: Stranded Bare Copper Earth Wire
C96: Supply and installation of stranded bare copper earth wire along with PVC wiring in conduits. Tendered rates shall make provision for wastage.
B98: 13.13.13 | C98: 2.5mm² | D98: m | E98: =E90 -> 250 | F98: 0 | G98: =F98*E98 -> 0
B100: 13.13.13 | C100: 4mm² | D100: m | G100: rate only
B102: 13.9 | C102: Light Switches
C104: Supply and installation of SABS approved type 16A flush and surface type light switches. Final paint finishes shall be confirmed at a later stage, allowance shall however be made as specified in the general specification.
B106: 13.9.1 | C106: 1 Lever 1 way | D106: No | E106: 4 | F106: 0 | G106: =F106*E106 -> 0
B108: 13.9.2 | C108: 1 Lever 2 way | D108: No | G108: rate only
B110: 13.9.13 | C110: 3 Lever 2 way | D110: No | G110: rate only
B112: 13.9.13 | C112: 3 Lever 1 way | D112: No | G112: rate only
B114: 13.9.13 | C114: Photo cell | D114: No | E114: 1 | F114: 0 | G114: =E114*F114 -> 0
B116: 13.1 | C116: Socket Outlets
C118: Supply and installation of SABS approved switched and unswitched type flush and surface mounted type 16A switched socket outlets suitable for mounting in flush steel wall boxes or in steel pedestal units or on surface.
C120: The final colour of the paint finish shall be confirmed at a later stage, allowance shall be made as specified in the specification.
C122: All flush type boxes and special pedestals measured elsewhere.
C124: Flush switched sockets type:
B126: 13.10.1 | C126: 16A single socket outlets - ZA plug | D126: No | E126: 8 | F126: 0 | G126: =F126*E126 -> 0
B128: 13.10.2 | C128: 16A double socket outlets - ZA plug | D128: No | G128: Rate only
B130: 13.10.13 | C130: Type F Socket outlet | D130: No | G130: rate only
B132: 13.10.13 | C132: Power Pole | D132: No | G132: rate only
C134: TOTAL FOR BILL - CARRIED FORWARD | G134: =SUM(G86:G133) -> 0
B135: TOTAL FOR BILL - BROUGHT FORWARD | G135: =G134 -> 0
B137: 13.11 | C137: Light Fittings
C139: Supply, delivery to site, storage and installation of the below specified light fittings complete with lamps, fixing material, mounting and tubes. Allowance must be made in the rates for all the required fixing materials and accessories.
C141: Fittings to be equal and similar approved to the below quoted manufacture.
B143: 13.11.1 | C143: Type F1: 2x14W 600mm LED decorative fluorescent light | D143: No | G143: rate only
P144: =60*12 -> 720
B145: 13.11.2 | C145: Type W1: 2x14W 600mm LED decorative vapour fluorescent light | D145: No | G145: rate only
B147: 13.11.13 | C147: Opal E-Battien 4FT 1140mm 45W - 4000K - IP20 | D147: No | E147: 15 | F147: 0 | G147: =E147*F147 -> 0
B149: 13.11.13 | C149: 15W LED Round Bulkhead 4000K | D149: No | E149: 8 | F149: 0 | G149: =F149*E149 -> 0
B151: 13.11.13 | C151: Suspended cosmos 100W IP65 1-10V dimmable high bay | D151: No | G151: rate only
B153: 13.12 | C153: Electrical Tests
C155: Making provision for the required inspection, tests and the commissioning of the complete installation and the issuing of the required certificate.
B157: 13.12.1 | C157: Building installation | D157: Sum | E157: 1 | F157: R4,000.00 | G157: =F157*E157 -> R4,000.00
B159: 13.113 | C159: Others
B161: 13.113.1 | C161: 300 x 300mm - Telephone & Data DB | D161: No | G161: Rate only
B163: 13.113.2 | C163: 100 x 100 x 50mm - Draw box for Communication complete with blank cover | D163: No | G163: Rate only
B165: 13.113.13 | C165: 2 compartment power skirting complete with socket outlets and blabks for telephone and data points. | D165: m | E165: =50 -> 50 | G165: Rate only
B167: 13.113.13 | C167: DATA and Telephone points on must include draw box, blank cover plate, etc, | D167: No | G167: Rate only
B169: 13.113.13 | C169: Provide the Sum of R 12,500.00 for earthing and lightning protection | D169: Sum | E169: 1 | F169: R12,500.00 | G169: =E169*F169 -> R12,500.00
B171: 13.113.7 | C171: 40A Isolator points with complete and suitable fitting, for stove | D171: No | G171: rate only
C173: TOTAL FOR BILL PER BLOCK (3X FLOORS)- CARRIED FORWARD TO SUMMARY | G173: 0

Sheet Changerooms
B2: ITEM | C2: DESCRIPTION | D2: UNIT | E2: QUANTITY | F2: RATE | G2: AMOUNT
B4: 14 | C4: CHANGEROOMS
B6: 14.1 | C6: P&G's @ 10 % of items 2-15
B8: 15.1 | C8: General trenching work for sleeves along the routes as pegged out on site after co-ordination with other services
B10: 16.1 | C10: Allowance must be made for the sifting of soil when required, removal and carting away of all stones and rocks including dumping off site. Backfilling and compaction shall be carried out as specified for overall siteworks.
B12: 17.1 | C12: Trenching through floor for sleeves | D12: m³ | G12: rate only
B14: 18.1 | C14: Excavation and backfilling in soft soil
D15: m³ | G15: rate only
B16: 19.1 | C16: Cable and Data Sleeves
B18: 20.1 | C18: Supply and installation of PVC Sleeves through floor construction to power distribution board and communication board complete with standard radius sleeve bends
B20: 21.1 | C20: 50 mm Diameter for Power Cables | D20: m | E20: 60 | F20: 0 | G20: =F20*E20 -> 0
C21: 110mm Diameter for power cable | D21: m | G21: rate only
C23: Radius bends:
B25: 14.2.14 | C25: 75mm Diameter | D25: No | G25: rate only
B27: 14.2.14 | C27: 110mm Diameter | D27: No | G27: rate only
B29: 14.14 | C29: Draw Wires
B31: 14.14.1 | C31: Supply and install a 0,6mm diameter galvanised draw wire in sleeves and conduit for data installation | D31: m | E31: =E63+E67 -> 270 | F31: 0 | G31: =F31*E31 -> 0
B33: 14.14 | C33: Distribution Boards
C35: Supply, delivery, storage and submission of workshop drawings for the Flush mounted architrave steel type power distribution boards complete with flush trays,doors,switch gear mounting trays, copper busbars, neutral and earth bars, correctly sized internal
B37: 14.14.1 | C37: Supply and install a Distribution Board | D37: No. | E37: 1 | F37: 0 | G37: =F37*E37 -> 0
C39: TOTAL FOR BILL - CARRIED FORWARD | G39: =SUM(G4:G38) -> 0
B40: TOTAL FOR BILL - BROUGHT FORWARD | G40: =G39 -> 0
B42: 14.14 | C42: Low Voltage PVC Cables
C43: Supply and installation of PVC SWA PVC cable and Bare Copper Earth Wire in sleeves and in trenches
B45: 14.14.1 | C45: 4mm 4 core PVC SWA Cable | D45: m | G45: rate only
B47: 14.14.2 | C47: 2.5mm BCEW | D47: m | G47: rate only
C49: Terminations:
B51: 14.14.14 | C51: 10mm 2 core cable | D51: No | E51: 2 | F51: 0 | G51: =E51*F51 -> 0
B53: 14.14.14 | C53: 6mm BCEW | D53: No | E53: 1 | F53: 0 | G53: =E53*F53 -> 0
B55: 14.14 | C55: Conduit Work
C57: Supply, delivery and installation of SABS approved PVC Conduits completed with all required conduit accessories.
C59: Built or Chase into brick or concrete work:
B61: 14.14.1 | C61: 20mm PVC conduit | D61: m | G61: rate only
B63: 14.14.2 | C63: 25mm PVC conduit | D63: m | E63: 150 | F63: 0 | G63: =F63*E63 -> 0
C65: In Ceiling space and Timber work or along Purlins
B67: 14.14.14 | C67: 20mm PVC conduit | D67: m | E67: 120 | F67: 0 | G67: =F67*E67 -> 0
B69: 14.14.14 | C69: 25mm PVC conduit | D69: m | G69: rate only
B71: 14.7 | C71: Supply and installation of SABS approved conduit boxes, installed in the run of the conduit installation, cast into concrete and built into brickwork or flush inside false ceiling spaces, complete with all required conduit termination accessories.
B73: 14.7.1 | C73: 20mm diameter 4 way type(round box) | D73: No | E73: 45 | F73: 0 | G73: =F73*E73 -> 0
B75: 14.7 | C75: Wall Boxes
C77: Supply and installation of SABS approved galvanised pressed steel wall boxes for building flush into brickwork or cast into concrete work.
C79: Flush mounted type:
B81: 14.7.1 | C81: 100 x 50 x 50mm | D81: No | E81: 4 | F81: 0 | G81: =F81*E81 -> 0
B83: 14.7.2 | C83: 100 x 100 x 50mm | D83: No | E83: 12 | G83: rate only
C85: TOTAL FOR BILL - CARRIED FORWARD | G85: =SUM(G40:G84) -> 0
B86: TOTAL FOR BILL - BROUGHT FORWARD | G86: =G85 -> 0
B88: 14.14 | C88: PVC Wiring in conduits:
B90: 14.14.1 | C90: 1.5mm² house wire for lights circuits | D90: m | E90: 250 | F90: 0 | G90: =F90*E90 -> 0 | J90: =970/100 -> R9.70
B92: 14.14.2 | C92: 4mm² house wire for lights socket outlets and isolators | D92: m | E92: 60 | F92: 0 | G92: =F92*E92 -> 0
C94: Stranded Bare Copper Earth Wire
C96: Supply and installation of stranded bare copper earth wire along with PVC wiring in conduits. Tendered rates shall make provision for wastage.
B98: 14.14.14 | C98: 2.5mm² | D98: m | E98: =E90 -> 250 | F98: 0 | G98: =F98*E98 -> 0
B100: 14.14.14 | C100: 4mm² | D100: m | G100: rate only
B102: 14.9 | C102: Light Switches
C104: Supply and installation of SABS approved type 16A flush and surface type light switches. Final paint finishes shall be confirmed at a later stage, allowance shall however be made as specified in the general specification.
B106: 14.9.1 | C106: 1 Lever 1 way | D106: No | E106: 4 | F106: 0 | G106: =F106*E106 -> 0
B108: 14.9.2 | C108: 1 Lever 2 way | D108: No | G108: rate only
B110: 14.9.14 | C110: 3 Lever 2 way | D110: No | G110: rate only
B112: 14.9.14 | C112: 3 Lever 1 way | D112: No | G112: rate only
B114: 14.9.14 | C114: Photo cell | D114: No | E114: 1 | F114: 0 | G114: =E114*F114 -> 0
B116: 14.1 | C116: Socket Outlets
C118: Supply and installation of SABS approved switched and unswitched type flush and surface mounted type 16A switched socket outlets suitable for mounting in flush steel wall boxes or in steel pedestal units or on surface.
C120: The final colour of the paint finish shall be confirmed at a later stage, allowance shall be made as specified in the specification.
C122: All flush type boxes and special pedestals measured elsewhere.
C124: Flush switched sockets type:
B126: 14.10.1 | C126: 16A single socket outlets - ZA plug | D126: No | E126: 6 | F126: 0 | G126: =F126*E126 -> 0
B128: 14.10.2 | C128: 16A double socket outlets - ZA plug | D128: No | G128: Rate only
B130: 14.10.14 | C130: Type F Socket outlet | D130: No
B132: 14.10.14 | C132: Power Pole | D132: No | G132: rate only
C134: TOTAL FOR BILL - CARRIED FORWARD | G134: =SUM(G86:G133) -> 0
B135: TOTAL FOR BILL - BROUGHT FORWARD | G135: =G134 -> 0
B137: 14.11 | C137: Light Fittings
C139: Supply, delivery to site, storage and installation of the below specified light fittings complete with lamps, fixing material, mounting and tubes. Allowance must be made in the rates for all the required fixing materials and accessories.
C141: Fittings to be equal and similar approved to the below quoted manufacture.
B143: 14.11.1 | C143: Type F1: 2x14W 600mm LED decorative fluorescent light | D143: No | G143: rate only
P144: =60*12 -> 720
B145: 14.11.2 | C145: Type W1: 2x14W 600mm LED decorative vapour fluorescent light | D145: No | G145: rate only
B147: 14.11.14 | C147: Opal E-Battien 4FT 1140mm 45W - 4000K - IP20 | D147: No | E147: 15 | F147: 0 | G147: =E147*F147 -> 0
B149: 14.11.14 | C149: 15W LED Round Bulkhead 4000K | D149: No | E149: 8 | F149: 0 | G149: =F149*E149 -> 0
B151: 14.11.14 | C151: Suspended cosmos 100W IP65 1-10V dimmable high bay | D151: No | G151: rate only
B153: 14.12 | C153: Electrical Tests
C155: Making provision for the required inspection, tests and the commissioning of the complete installation and the issuing of the required certificate.
B157: 14.12.1 | C157: Building installation | D157: Sum | E157: 1 | F157: R4,000.00 | G157: =F157*E157 -> R4,000.00
B159: 14.114 | C159: Others
B161: 14.114.1 | C161: 300 x 300mm - Telephone & Data DB | D161: No | G161: Rate only
B163: 14.114.2 | C163: 100 x 100 x 50mm - Draw box for Communication complete with blank cover | D163: No | G163: Rate only
B165: 14.114.14 | C165: 2 compartment power skirting complete with socket outlets and blabks for telephone and data points. | D165: m | G165: Rate only
B167: 14.114.14 | C167: DATA and Telephone points on must include draw box, blank cover plate, etc, | D167: No | G167: Rate only
B169: 14.114.14 | C169: Provide the Sum of R 10,000.00 for earthing and lightning protection | D169: Sum | E169: 1 | F169: R10,000.00 | G169: =E169*F169 -> R10,000.00
B171: 14.114.7 | C171: 40A Isolator points with complete and suitable fitting, for stove | D171: No | G171: rate only
C173: TOTAL FOR BILL PER BLOCK (3X FLOORS)- CARRIED FORWARD TO SUMMARY | G173: 0

Sheet Guard House
B2: ITEM | C2: DESCRIPTION | D2: UNIT | E2: QUANTITY | F2: RATE | G2: AMOUNT
B4: 15 | C4: GUARD HOUSE
B6: 15.1 | C6: P&G's @ 10 % of items 2-15
B8: 16.1 | C8: General trenching work for sleeves along the routes as pegged out on site after co-ordination with other services
B10: 17.1 | C10: Allowance must be made for the sifting of soil when required, removal and carting away of all stones and rocks including dumping off site. Backfilling and compaction shall be carried out as specified for overall siteworks.
B12: 18.1 | C12: Trenching through floor for sleeves | D12: m³ | G12: rate only
B14: 19.1 | C14: Excavation and backfilling in soft soil
D15: m³ | G15: rate only
B16: 20.1 | C16: Cable and Data Sleeves
B18: 21.1 | C18: Supply and installation of PVC Sleeves through floor construction to power distribution board and communication board complete with standard radius sleeve bends
B20: 22.1 | C20: 50 mm Diameter for Power Cables | D20: m | E20: 60 | F20: 0 | G20: =F20*E20 -> 0
C21: 110mm Diameter for power cable | D21: m | G21: rate only
C23: Radius bends:
B25: 15.2.15 | C25: 75mm Diameter | D25: No | G25: rate only
B27: 15.2.15 | C27: 110mm Diameter | D27: No | G27: rate only
B29: 15.15 | C29: Draw Wires
B31: 15.15.1 | C31: Supply and install a 0,6mm diameter galvanised draw wire in sleeves and conduit for data installation | D31: m | E31: =E63+E67 -> 250 | F31: 0 | G31: =F31*E31 -> 0
B33: 15.15 | C33: Distribution Boards
C35: Supply, delivery, storage and submission of workshop drawings for the Flush mounted architrave steel type power distribution boards complete with flush trays,doors,switch gear mounting trays, copper busbars, neutral and earth bars, correctly sized internal
B37: 15.15.1 | C37: Supply and install a Distribution Board | D37: No. | E37: 1 | F37: 0 | G37: =F37*E37 -> 0
C39: TOTAL FOR BILL - CARRIED FORWARD | G39: =SUM(G4:G38) -> 0
B40: TOTAL FOR BILL - BROUGHT FORWARD | G40: =G39 -> 0
B42: 15.15 | C42: Low Voltage PVC Cables
C43: Supply and installation of PVC SWA PVC cable and Bare Copper Earth Wire in sleeves and in trenches
B45: 15.15.1 | C45: 4mm 4 core PVC SWA Cable | D45: m | G45: rate only
B47: 15.15.2 | C47: 2.5mm BCEW | D47: m | G47: rate only
C49: Terminations:
B51: 15.15.15 | C51: 10mm 2 core cable | D51: No | E51: 2 | F51: 0 | G51: =E51*F51 -> 0
B53: 15.15.15 | C53: 6mm BCEW | D53: No | E53: 1 | F53: 0 | G53: =E53*F53 -> 0
B55: 15.15 | C55: Conduit Work
C57: Supply, delivery and installation of SABS approved PVC Conduits completed with all required conduit accessories.
C59: Built or Chase into brick or concrete work:
B61: 15.15.1 | C61: 20mm PVC conduit | D61: m | G61: rate only
B63: 15.15.2 | C63: 25mm PVC conduit | D63: m | E63: 150 | F63: 0 | G63: =F63*E63 -> 0
C65: In Ceiling space and Timber work or along Purlins
B67: 15.15.15 | C67: 20mm PVC conduit | D67: m | E67: 100 | F67: 0 | G67: =F67*E67 -> 0
B69: 15.15.15 | C69: 25mm PVC conduit | D69: m | G69: rate only
B71: 15.7 | C71: Supply and installation of SABS approved conduit boxes, installed in the run of the conduit installation, cast into concrete and built into brickwork or flush inside false ceiling spaces, complete with all required conduit termination accessories.
B73: 15.7.1 | C73: 20mm diameter 4 way type(round box) | D73: No | E73: 45 | F73: 0 | G73: =F73*E73 -> 0
B75: 15.7 | C75: Wall Boxes
C77: Supply and installation of SABS approved galvanised pressed steel wall boxes for building flush into brickwork or cast into concrete work.
C79: Flush mounted type:
B81: 15.7.1 | C81: 100 x 50 x 50mm | D81: No | E81: 4 | F81: 0 | G81: =F81*E81 -> 0
B83: 15.7.2 | C83: 100 x 100 x 50mm | D83: No | E83: 12 | G83: rate only
C85: TOTAL FOR BILL - CARRIED FORWARD | G85: =SUM(G40:G84) -> 0
B86: TOTAL FOR BILL - BROUGHT FORWARD | G86: =G85 -> 0
B88: 15.15 | C88: PVC Wiring in conduits:
B90: 15.15.1 | C90: 1.5mm² house wire for lights circuits | D90: m | E90: 250 | F90: 0 | G90: =F90*E90 -> 0 | J90: =970/100 -> R9.70
B92: 15.15.2 | C92: 4mm² house wire for lights socket outlets and isolators | D92: m | E92: 60 | F92: 0 | G92: =F92*E92 -> 0
C94: Stranded Bare Copper Earth Wire
C96: Supply and installation of stranded bare copper earth wire along with PVC wiring in conduits. Tendered rates shall make provision for wastage.
B98: 15.15.15 | C98: 2.5mm² | D98: m | E98: =E90 -> 250 | F98: 0 | G98: =F98*E98 -> 0
B100: 15.15.15 | C100: 4mm² | D100: m | G100: rate only
B102: 15.9 | C102: Light Switches
C104: Supply and installation of SABS approved type 16A flush and surface type light switches. Final paint finishes shall be confirmed at a later stage, allowance shall however be made as specified in the general specification.
B106: 15.9.1 | C106: 1 Lever 1 way | D106: No | E106: 2 | F106: 0 | G106: =F106*E106 -> 0
B108: 15.9.2 | C108: 1 Lever 2 way | D108: No | G108: rate only
B110: 15.9.15 | C110: 3 Lever 2 way | D110: No | G110: rate only
B112: 15.9.15 | C112: 3 Lever 1 way | D112: No | G112: rate only
B114: 15.9.15 | C114: Photo cell | D114: No | E114: 1 | F114: 0 | G114: =E114*F114 -> 0
B116: 15.1 | C116: Socket Outlets
C118: Supply and installation of SABS approved switched and unswitched type flush and surface mounted type 16A switched socket outlets suitable for mounting in flush steel wall boxes or in steel pedestal units or on surface.
C120: The final colour of the paint finish shall be confirmed at a later stage, allowance shall be made as specified in the specification.
C122: All flush type boxes and special pedestals measured elsewhere.
C124: Flush switched sockets type:
B126: 15.10.1 | C126: 16A single socket outlets - ZA plug | D126: No | E126: 4 | F126: 0 | G126: =F126*E126 -> 0
B128: 15.10.2 | C128: 16A double socket outlets - ZA plug | D128: No | G128: Rate only
B130: 15.10.15 | C130: Type F Socket outlet | D130: No | G130: rate only
B132: 15.10.15 | C132: Power Pole | D132: No | G132: rate only
C134: TOTAL FOR BILL - CARRIED FORWARD | G134: =SUM(G86:G133) -> 0
B135: TOTAL FOR BILL - BROUGHT FORWARD | G135: =G134 -> 0
B137: 15.11 | C137: Light Fittings
C139: Supply, delivery to site, storage and installation of the below specified light fittings complete with lamps, fixing material, mounting and tubes. Allowance must be made in the rates for all the required fixing materials and accessories.
C141: Fittings to be equal and similar approved to the below quoted manufacture.
B143: 15.11.1 | C143: Type F1: 2x14W 600mm LED decorative fluorescent light | D143: No | G143: rate only
P144: =60*12 -> 720
B145: 15.11.2 | C145: Type W1: 2x14W 600mm LED decorative vapour fluorescent light | D145: No | G145: rate only
B147: 15.11.15 | C147: Opal E-Battien 4FT 1140mm 45W - 4000K - IP20 | D147: No | E147: 2 | F147: 0 | G147: =E147*F147 -> 0
B149: 15.11.15 | C149: 15W LED Round Bulkhead 4000K | D149: No | E149: 4 | F149: 0 | G149: =F149*E149 -> 0
B151: 15.11.15 | C151: Suspended cosmos 100W IP65 1-10V dimmable high bay | D151: No | G151: rate only
B153: 15.12 | C153: Electrical Tests
C155: Making provision for the required inspection, tests and the commissioning of the complete installation and the issuing of the required certificate.
B157: 15.12.1 | C157: Building installation | D157: Sum | E157: 1 | F157: R4,000.00 | G157: =F157*E157 -> R4,000.00
B159: 15.115 | C159: Others
B161: 15.115.1 | C161: 300 x 300mm - Telephone & Data DB | D161: No | G161: Rate only
B163: 15.115.2 | C163: 100 x 100 x 50mm - Draw box for Communication complete with blank cover | D163: No | G163: Rate only
B165: 15.115.15 | C165: 2 compartment power skirting complete with socket outlets and blabks for telephone and data points. | D165: m | E165: =50 -> 50 | G165: Rate only
B167: 15.115.15 | C167: DATA and Telephone points on must include draw box, blank cover plate, etc, | D167: No | G167: Rate only
B169: 15.115.15 | C169: Provide the Sum of R 10 000.00 for earthing and lightning protection | D169: Sum | E169: 1 | F169: R10,000.00 | G169: =E169*F169 -> R10,000.00
B171: 15.115.7 | C171: 40A Isolator points with complete and suitable fitting, for stove | D171: No | G171: rate only
C173: TOTAL FOR BILL PER BLOCK (3X FLOORS)- CARRIED FORWARD TO SUMMARY | G173: 0

Sheet Area Lighting (hidden)
B3: ITEM | C3: DESCRIPTION | D3: UNIT | E3: QTY | F3: RATE | G3: TOTAL
B5: 6 | C5: AREA LIGHTING
B7: 6.1 | C7: LOW VOLTAGE CABLE
C8: For the Supply, delivery to Site and Installation of the following Low Voltage Cable:(600/1000V PVC PVC SWA Cu)
B9: 6.1.1 | C9: 4mm x 4 core | D9: m | G9: =E9*F9 -> 0
B10: 6.1.2 | C10: 16mm x 2 core | D10: m | G10: rate only
B11: 6.1.3 | C11: 2.5mm x 2 core | D11: m | E11: 1500 | F11: R 12.00 | G11: =F11*E11 -> R 18,000.00
B13: 6.2 | C13: Provide the provissional sum of ZAR 1,550,900.00 for the refurbishment of Block A,B,C,D,E and Administration block ( This includes small power and lighting and earthing and lightning protection) | E13: 1550900
C14: For the Supply and Installation of the following | S14: =S13*650 -> 0
C15: BCE Wire to run with LV Cables: | F15: =SUM(F6:F13) -> R 12.00
B16: 6.2.1 | C16: 16mm sq ( With 25mm sq Cable ) | D16: m | F16: =F15*0.1 -> R 1.20
B17: 6.2.2 | C17: 10mm sq ( With 10 - 16mm sq Cable ) | D17: m | F17: =F16+F15 -> R 13.20
B18: 6.2.3 | C18: 1.5mm sq ( With 2.5mm sq cable) | D18: m | F18: =F17*0.15 -> R 1.98 | G18: rate only
F19: =F18+F17 -> R 15.18
B20: 6.3 | C20: LOW VOLTAGE CABLE TERMINATIONS
C21: For the supply of Indoor terminations | E21: 42.00
C22: including suitable Lugs and Glands for the
C23: Low Voltage Cable and BCE Wire:
B24: 6.3.1 | C24: 25mm x 4 core | D24: No. | G24: rate only
B25: 6.3.2 | C25: 16mm x 4 core | D25: No. | G25: rate only
B26: 6.3.3 | C26: 16mm x 2 core | D26: No. | G26: rate only
B27: 6.3.4 | C27: 4mm x 2 core | D27: No. | G27: rate only
B29: 6.4 | C29: BARE COPPER EARTH WIRE (STRANDED)
F30: =5171811.67-2324872.67 -> R 2,846,939.00
B31: 6.4.1 | C31: BCEW 16mm sq | D31: No. | G31: rate only
B32: 6.4.2 | C32: BCEW 10mm sq | D32: No. | G32: rate only
B33: 6.4.3 | C33: BCEW 1.5mm sq | D33: No. | E33: =E11 -> 1500 | F33: R 9.00 | G33: =F33*E33 -> R 13,500.00
B35: 6.6 | C35: LOW VOLTAGE CABLE JOINTS
C36: For the Supply, delivery to Site and
C37: Installation of the following Low Voltage Cable
C38: Joints:
B39: 6.6.1 | C39: 50mm x 4 core | D39: No. | G39: rate only
B40: 6.6.2 | C40: 16mm x 4 core | D40: No. | G40: rate only
B41: 6.6.3 | C41: 35mm x 2 core | D41: No. | G41: rate only
B42: 6.6.4 | C42: 6mm x 4 core | D42: No. | G42: rate only
B44: 6.6 | C44: Conduit Work
C46: Supply, delivery and installation of SABS approved PVC Conduits completed with all required conduit accessories.
B48: 6.6.1 | C48: Built or Chase into brick or concrete work:
B50: 6.6.2 | C50: 20mm PVC conduit | D50: m | G50: rate only
B52: 6.6.3 | C52: 25mm PVC conduit | D52: m | G52: rate only
C54: In Ceiling space and Timber work or along Purlins
B56: 6.6.4 | C56: 20mm PVC conduit | D56: m | E56: 300 | F56: R25.00 | G56: =F56*E56 -> R7,500.00
B58: 6.6.6 | C58: 25mm PVC conduit | D58: m | G58: rate only
C60: Supply and installation of SABS approved conduit boxes, installed in the run of the conduit installation, cast into concrete and built into brickwork or flush inside false ceiling spaces, complete with all required conduit termination accessories.
B62: 6.6.6 | C62: 20mm diameter 4 way type(round box) | D62: No | E62: 15 | F62: R15.00 | G62: =F62*E62 -> R225.00
C64: TOTAL FOR BILL - CARRIED FORWARD | G64: =SUM(G4:G62) -> R39,225.00
C65: TOTAL BROUGHT FORWARD | G65: =G64 -> R 39,225.00
B67: 6.8 | C67: STREETLIGHTS
C69: Supply, delivery to Site and Installation of the following Street light units complete as per Specification.
B71: 6.8.1 | C71: Galvanised steel poles, 2m mounting height complete accessories. Colour - Mineral Grey (K913) RAL 7045 | D71: No. | G71: rate only
B73: 6.8.2 | C73: Galvanised steel poles, 5m mounting height complete accessories. Colour - Mineral Grey (K913) RAL 7045 | D73: No. | E73: 2 | F73: =3980*1.3 -> R 5,174.00 | G73: =E73*F73 -> R 10,348.00
B75: 6.8.3 | C75: Galvanised steel poles, 8m mounting height complete accessories. Colour - Mineral Grey (K913) RAL 7045 | D75: No. | G75: rate only
B77: 6.8.4 | C77: Galvanised steel poles, 15m mounting height with 4 way mounting spigot complete accessories. Colour - Mineral Grey (K913) RAL 7045 | D77: No. | G77: rate only
B79: 6.8.6 | C79: Beka shredder bollard 9LED/14W with all accessories | D79: No. | G79: rate only
B81: 6.8.6 | C81: Beka shredder zela with all accessories | D81: No. | G81: rate only
B83: 6.8.6 | C83: 1200mm 2x14W LED vapourproof fluorescent luminaire | D83: No | G83: rate only
B85: 6.8.8 | C85: GEN 0-1 LED STREETLIGHT 51W - 650mA - OPTIC 41810 - 4000K MOUNTED ON 5M POLES | D85: No | E85: 16 | F85: =1650*1.2*1.3 -> R2,574.00 | G85: =E85*F85 -> R41,184.00
B87: 6.8.9 | C87: ZELA DECORATIVE LED POST-TOP LUMINAIRE 46W - MOUNTED ON 5M POLES | D87: No. | E87: 2 | F87: 2,750.00 | G87: =E87*F87 -> 5,500.00
B89: 6.9 | C89: WIRING ON THE POLE
B92: 6.9.1 | C92: 600/1000V grade PVC insulated stranded copper conductors compete with terminations and accessories
B94: 6.9.2 | C94: Norse cable 2.5mm2 or( Equivalent ) and other accessories for street light connection from ABC to Luminaire | D94: m | G94: rate only
B96: 6.9.3 | C96: 1.5mm² Stranded bare copper earth wire | D96: m | G96: rate only
B98: 6.6 | C98: Earthing and Lightning Protection System
C100: Earth Electrode
B101: 6.6.1 | C101: Supply and installation of 10mm2 single core PVC SWA PVC cable earth Wire | D101: m | G101: rate only
B103: 6.6.2 | C103: Earth spikes 1,2m long and accessories all the way to light fitting | D103: No. | G103: rate only
B105: 6.6.3 | C105: Supply and install earthing accessories of the light fitting | D105: No. | G105: rate only
B107: 6.11 | C107: TESTING AND COMMISSIONING
C108: Supply all Test equipment and Labour
C109: for Testing, Commissioning and
C110: Adjustment at Completion, as well as being
C111: in attendance for any Inspections and Tests
C112: that the Engineer may call for. All Eskom Standards and specifications will apply | D112: sum | E112: 1 | F112: R 5,000.00 | G112: =F112*E112 -> R 5,000.00
C114: TOTAL CARRIED TO SUMMARY | G114: =SUM(G65:G112) -> R 101,257.00

Sheet Lightning Protection (hidden)
A1: ITEM | B1: DESCRIPTION | C1: UNIT | D1: QTY | E1: RATE | F1: AMOUNT
A3: 5 | B3: Earthing and Lightning Protection System
B5: Low Voltage Conductor
B6: Supply and installation of Bare Copper Earth Wire for Earthing and Bonding on earth mat with connecting accessories
A8: 5.1 | B8: Bonding and Earth Conductors
A10: 5.1.2 | B10: Bonding Conductor 16mm2 CU conductor & connecting accessories | C10: m | D10: 5 | E10: 35.00 | F10: =E10*D10 -> 175.00
A12: 5.1.3 | B12: Earth Conductor 50mm2 Cu or KWENA conductor & connecting accessories | C12: m | F12: rate only
A14: 5.1.4 | B14: Down Conductor 50mm2 Al conductor & connecting accessories | C14: m | D14: =4*4 -> 16 | E14: 165.00 | F14: =E14*D14 -> 2,640.00
A16: 5.1.5 | B16: Exometric weld | C16: No | D16: 4 | E16: 230.00 | F16: =E16*D16 -> 920.00
A18: 5.2 | B18: Earth Electrode
B19: Supply and installation of PVC SWA PVC cable and Bare Copper Earth Wire in sleeves and in trenches
A21: 5.2,1 | B21: Earth spikes 1,2m long and accessories | C21: No | D21: 4 | E21: 385.00 | F21: =E21*D21 -> 1,540.00
A23: 5.3 | B23: Conduit Work
B25: Supply, delivery and installation of SABS approved PVC / Galvanised Conduits completed with all required conduit accessories.
B27: Built or Chase into brick or concrete work:
A29: 5.3.1 | B29: 30mm PVC Conduit | C29: m | D29: 8 | E29: 35.00 | F29: =E29*D29 -> 280.00
A31: 5.3.2 | B31: 30mm Galvanised Conduit | C31: m | F31: rate only
A33: 5.4 | B33: Test Joint Wall Boxes
B34: Supply and installation of SABS approved LPS wall boxes for building flush into brickwork or cast into concrete work.
B36: Surface mounted type:
A38: 5.4.1 | B38: 100 x 100 x 100mm box for LPS | C38: No | D38: 4 | E38: 190.00 | F38: =E38*D38 -> 760.00
A40: 5.4.2 | B40: 100 x 100 Blank cover for LPS | C40: No | D40: =D38 -> 4 | E40: 60.00 | F40: =E40*D40 -> 240.00
A42: 5.5 | B42: Electrical Tests
B45: Making provision for the required inspection, tests and the commissioning of the complete installation and the issuing of the required certificate.
A47: 5.5.1 | B47: Soil resistivity Test | C47: Sum | D47: 1 | E47: =1800/3 -> 600.00 | F47: =E47*D47 -> 600.00
A49: 5.5.2 | B49: Risk Assessment | C49: Sum | D49: 1 | E49: =1500/3 -> 500.00 | F49: =E49*D49 -> 500.00
A51: 5.5.3 | B51: Installations accessories including surge protection devices etc | C51: No | D51: 3 | E51: 450.00 | F51: =E51*D51 -> 1,350.00
A53: 5.5.4 | B53: Certificate of Compliance as per IEC 62305:2010-2012 | C53: No | D53: 1 | E53: =1500/3 -> 500.00 | F53: =E53*D53 -> 500.00
A55: 5.6 | B55: Others
A57: 5.6.1 | B57: Design documentation | C57: Sum | D57: 1 | E57: =1800/3 -> 600.00 | F57: =E57*D57 -> 600.00
A59: 5.6.2 | B59: As Built documentation | C59: Sum | D59: 1 | E59: =1500/3 -> 500.00 | F59: =E59*D59 -> 500.00
A61: 5.6.3 | B61: Service detection tests | C61: Sum | F61: rate only
A63: 5.6.4 | B63: Sundries and other associated items | C63: Sum | D63: 1 | F63: =E63*D63 -> 0.00
B66: TOTAL BID PRICE VAT INCL | F66: =SUM(F6:F65) -> ZAR 10,605.00

Sheet Refuse Area (hidden)

Sheet Fire Supression (hidden)
A1: ITEM | B1: DESCRIPTION | C1: UNIT | D1: QTY | E1: SUPPLY | F1: INSTALL | G1: AMOUNT
A2: 5
A3: 5.1 | B3: LECTURE HALL
A5: 5.1.1 | B5: VALVE CHAMBER
A6: 5.1.1.1 | B6: Schedule 40 and 100mm norminal bore stop valve | C6: No. | D6: 1 | E6: 450 | F6: 150 | G6: =(E6+F6)*D6 -> 600.00
A7: 5.1.1.2 | B7: Schedule 40 and 100mm norminal bore alarm valve | C7: No. | D7: 1 | E7: 380 | F7: 150 | G7: 530.00
A8: 5.1.1.3 | B8: Booster Connections | C8: No. | D8: 2 | E8: 180 | F8: 35 | G8: 430.00
A9: 5.1.1.4 | B9: Schedule 40 and 50mm norminal bore Flushing valve | C9: No. | D9: 1 | E9: 520 | F9: 150 | G9: 670.00
A10: 5.1.1.5 | B10: Pressure gauge | C10: No. | D10: 2 | E10: 580 | F10: 95 | G10: 1,350.00
A11: 5.1.1.6 | B11: Schedule 40 and 80mm norminal bore test pipe | C11: m | D11: 10 | E11: 780 | F11: 150 | G11: 9,300.00
A12: 5.1.1.7 | B12: Schedule 40 and 50mm norminal bore Alarm motor valve | C12: No. | D12: 1 | E12: 430 | F12: 150 | G12: 580.00
A13: 5.1.1.8 | B13: Schedule 40 and 50mm norminal bore drain pipe | C13: m | D13: 8 | E13: 570 | F13: 150 | G13: 5,760.00
A14: 5.1.1.9 | B14: Schedule 40 and 80mm norminal bore test valve | C14: m | D14: 1 | E14: 700 | F14: 150 | G14: 850.00
A15: 5.1.1.10 | B15: Alarm pressure switch | C15: No. | D15: 1 | E15: 280 | F15: 95 | G15: 375.00
A16: 5.1.1.11 | B16: Schedule 40 and 15mm norminal bore alarm By-Pass valve | C16: No. | D16: 1 | E16: 190 | F16: 90 | G16: 280.00
A17: 5.1.1.12 | B17: 50mm Alarm strainer | C17: No. | D17: 1 | E17: 380 | F17: 95 | G17: 475.00
A18: 5.1.1.13 | B18: Schedule 40 and 50mm norminal bore union | C18: No. | D18: 1 | E18: 90 | F18: 21 | G18: 111.00
A19: 5.1.1.14 | B19: 50mm false alarm pump suction isolation valve | C19: No. | D19: 1 | E19: 410 | F19: 95 | G19: 505.00
A20: 5.1.1.15 | B20: False alarm pump | C20: No. | D20: 1 | E20: 700 | F20: 95 | G20: 795.00
A21: 5.1.1.16 | B21: 50mm False alarm pump delivery non return valve | C21: No. | D21: 1 | E21: 760 | F21: 95 | G21: 855.00
A22: 5.1.1.17 | B22: 50mm False alarm pump delivery stop valve | C22: No. | D22: 1 | E22: 760 | F22: 95 | G22: 855.00
A23: 5.1.1.18 | B23: Schedule 40 and 50mm norminal bore Alarm test valve | C23: No. | D23: 1 | E23: 710 | F23: 150 | G23: 860.00
A25: 5.1.2 | B25: PIPING AND ACCESSORIES
A26: 5.1.2.1 | B26: Schedule 40 and 32mm norminal bore pipe | C26: m | D26: 45 | E26: 400 | F26: 150.00 | G26: =(E26+F26)*D26 -> 24,750.00
A27: 5.1.2.2 | B27: Schedule 40 and 40mm norminal bore pipe | C27: m | D27: 250 | E27: 380 | F27: 150.00 | G27: 132,500.00
A28: 5.1.2.3 | B28: Schedule 40 and 50mm norminal bore pipe | C28: m | D28: 6.5 | E28: 690 | F28: 150.00 | G28: 5,460.00
A29: 5.1.2.4 | B29: Schedule 40 and 60mm norminal bore pipe | C29: m | D29: 3 | E29: 730 | F29: 150.00 | G29: 2,640.00
A30: 5.1.2.5 | B30: Schedule 40 and 80mm norminal bore pipe | C30: m | D30: 3 | E30: 890 | F30: 150.00 | G30: 3,120.00
A31: 5.1.2.6 | B31: Schedule 40 and 100mm norminal bore pipe | C31: m | D31: 47 | E31: 990 | F31: 150.00 | G31: 53,580.00
A33: TOTAL CARRIED FORWARD | G33: =SUM(G5:G31) -> R 247,231.00
A34: TOTAL CARRIED FORWARD | G34: =G33 -> R 247,231.00
A36: 5.1.3 | B36: ELBOWS
A37: 5.1.3.1 | B37: Schedule 40 and 32mm norminal bore 90 degree elbow | C37: No. | D37: 158 | E37: 100 | F37: 19 | G37: =(E37+F37)*D37 -> 18,802.00
A38: 5.1.3.2 | B38: Schedule 40 and 40mm norminal bore 90 degree elbow | C38: No. | D38: 24 | E38: 132 | F38: 19 | G38: =(E38+F38)*D38 -> 3,624.00
A39: 5.1.3.3 | B39: Schedule 40 and 100mm norminal bore 90 degree elbow | C39: No. | D39: 10 | E39: 180 | F39: 19 | G39: =(E39+F39)*D39 -> 1,990.00
A40: 5.1.3.4 | B40: Schedule 40 and 32mm norminal bore 45 degree elbow | C40: No. | D40: 2 | E40: 100 | F40: 19 | G40: =(E40+F40)*D40 -> 238.00
A42: 5.1.4 | B42: TEES
A43: 5.1.4.1 | B43: Schedule 40 and 100mm x40mm norminal bore connecting tee | C43: No. | D43: 8 | E43: 210 | F43: 19.00 | G43: =(E43+F43)*D43 -> 1,832.00
A44: 5.1.4.2 | B44: Schedule 40 and 80mm x40mm norminal bore connecting tee | C44: No. | D44: 2 | E44: 190 | F44: 19.00 | G44: =(E44+F44)*D44 -> 418.00
A45: 5.1.4.3 | B45: Schedule 40 and 60mm x40mm norminal bore connecting tee | C45: No. | D45: 2 | E45: 189 | F45: 19.00 | G45: =(E45+F45)*D45 -> 416.00
A46: 5.1.4.4 | B46: Schedule 40 and 50mm x40mm norminal bore connecting tee | C46: No. | D46: 4 | E46: 134 | F46: 19.00 | G46: =(E46+F46)*D46 -> 612.00
A47: 5.1.4.5 | B47: Schedule 40 and 40mm x32mm norminal bore connecting tee | C47: No. | D47: 23 | E47: 100 | F47: 19.00 | G47: =(E47+F47)*D47 -> 2,737.00
A49: 5.1.5 | B49: REDUCERS
A50: 5.1.5.1 | B50: Schedule 40 and 40 to 32mm norminal bore concentric reducer | C50: No. | D50: 158 | E50: 117 | F50: 19.00 | G50: =(E50+F50)*D50 -> 21,488.00
A51: 5.1.5.2 | B51: Schedule 40 and 50 to 40mm norminal bore concentric reducer | C51: No. | D51: 6 | E51: 128 | F51: 19.00 | G51: =(E51+F51)*D51 -> 882.00
A52: 5.1.5.3 | B52: Schedule 40 and 60 to 50mm norminal bore concentric reducer | C52: No. | D52: 2 | E52: 136 | F52: 19.00 | G52: =(E52+F52)*D52 -> 310.00
A53: 5.1.5.4 | B53: Schedule 40 and 80 to 60mm norminal bore concentric reducer | C53: No. | D53: 2 | E53: 147 | F53: 19.00 | G53: =(E53+F53)*D53 -> 332.00
A54: 5.1.5.5 | B54: Schedule 40 and 100 to 80mm norminal bore concentric reducer | C54: No. | D54: 2 | E54: 178 | F54: 19.00 | G54: =(E54+F54)*D54 -> 394.00
A56: 5.1.6 | B56: SPRINKLERS
A58: 5.1.6.1 | B58: White painted peiling sprinkler heads with white rosettes to a plasterboard ceiling. 362 x 552 outlet melting point 158 ° F type | C58: No. | D58: 90 | E58: 200 | F58: 45.00 | G58: =(E58+F58)*D58 -> 22,050.00
A62: TOTAL CARRIED FORWARD | G62: =SUM(G34:G61) -> R 323,356.00
A63: TOTAL CARRIED TO SUMMARY (SPRINKLER FIRE SYSTEM ) | G63: =G62 -> R 323,356.00
J184: Note: Eng/Siboniso to input correct capacity as per specification
